Cogmind - Beta 11 @@@ ROGUE MODE // 2022.04.04 @ 07:13:41 Player: youngster Result: Establishing Free Derelict Territories! Performance ------------- Evolutions (9) 4500 Regions Visited (33) 6600 Robots Destroyed (392) 1960 Value Destroyed (16946) 16946 Prototype IDs (88) 1760 Alien Tech Used (6) 1200 Bonus (38057) 38057 TOTAL SCORE: 71023 Bonus ------- High Alert Combat Kills 1736 Follower Combat Kills 2415 Network Hubs Disabled 200 Met Data Miner 300 Met Zhirov 300 Met Warlord at Base 500 MAIN.C Attacked Warlord 500 Built Enhanced Grunts 300 A7 Reached Mainframe 300 Met R17 at Cetus 500 Met R17 at Research 2000 Met Warlord at Research 2000 Acquired SGEMP 2000 Delivered SGEMP 2000 Destroyed MAIN.C Guards 500 Met MAIN.C 5000 Hacked MAIN.C 300 Destroyed MAIN.C Shell 5000 Destroyed MAIN.C 10000 Met Warlord at Command 2000 Win 3000 Friendly Fire -2794 Cogmind --------- Core Integrity 1486/1600 Matter 176/300 Energy 690/690 System Corruption 2% Temperature Cool (0) Movement Treading (150) Location Free Derelict Territories Parts ------- > --- POWER (3) -------- Quantum Reactor Light Quantum Reactor Reinforced Quantum Reactor > --- PROPULSION (6) --- Centrium Heavy Treads Biometal Heavy Treads Biometal Heavy Treads > --- UTILITY (13) ----- Advanced Cooling System Huge Storage Unit Enhanced Optical Array Experimental Targeting Computer Advanced Target Analyzer Experimental Target Analyzer Improved Armor Integrity Analyzer Improved Weapon Cycler Improved Medium Armor Plating Centrium Medium Armor Plating Graphene Brace Advanced Shield Generator > --- WEAPON (4) ------- Tri-rail Accelerator Tri-rail Accelerator > --- INVENTORY (25) --- Light Quantum Reactor Biometal Heavy Treads Advanced Heavy Siege Treads Advanced Cooling System Improved Energy Well (400) Experimental Matter Compressor (500) Antimissile System Improved Component Analysis Suite Long-range Tractor Beam Nova Cannon Potential Cannon Railgun Multirail Compact Linear Accelerator Tesla Bomb Launcher Ragnarok Missile Launcher Advanced Remote Datajack Sigix Broadsword Peak State ------------ > --- POWER ------------ Improved Quantum Reactor Vortex Chain Reactor > --- PROPULSION ------- Centrium Heavy Treads Biometal Heavy Treads Advanced Heavy Siege Treads > --- UTILITY ---------- Advanced Cooling System Huge Storage Unit Enhanced Optical Array Advanced Signal Interpreter Experimental Targeting Computer Advanced Target Analyzer Experimental Target Analyzer Centrium Light Armor Plating Centrium Light Armor Plating Centrium Medium Armor Plating Graphene Brace Advanced Remote Shield System Mapper > --- WEAPON ----------- Railgun Tesla Bomb Launcher Sigix Broadsword > --- INVENTORY -------- Light Quantum Reactor Advanced Cooling System Improved Energy Well Experimental Matter Compressor Advanced Sensor Array Improved Weapon Cycler EM Disruption Field Antimissile System Improved Component Analysis Suite Long-range Tractor Beam Subatomic Replicator Potential Cannon Coil Gun Coil Gun Multirail Tri-rail Accelerator Ragnarok Missile Launcher Core Stripper [Rating: 234] Favorites ----------- Power Improved Ion Engine Engine Improved Ion Engine Power Core Nuclear Core Reactor Quantum Reactor Propulsion Armored Treads Treads Armored Treads Leg Aluminum Leg Wheel Wheel Hover Unit Improved Antigrav System Flight Unit Diametric Drive Utility Huge Storage Unit Device Graphene Brace Storage Huge Storage Unit Processor Enhanced Optical Array Hackware System Mapper Protection Centrium Light Armor Plating Artifact Phase Redirector Weapon Gauss Rifle Energy Gun Medium Laser Energy Cannon Cooled Particle Cannon Ballistic Gun Gauss Rifle Ballistic Cannon Tri-rail Accelerator Launcher Tesla Bomb Launcher Special Weapon Advanced Remote Datajack Impact Weapon Heavy Flail Slashing Weapon Sigix Broadsword Build | -11 -10 -10 -9 -9 -9 -8 -8 -7 -7 -7 -7 -6 -6 -6 -6 -6 -6 -5 -5 -5 -5 -4 -4 -4 -4 -4 -3 -3 -3 -2 -2 -1 -1 ------- Run | Scr Mat Min Mat Min Exi Min Mat Fac Low Low Dat Pro Fac Ext Cet Arc Hub Fac Upp Upp War Pro Fac Upp Upp Zhi Pro Res Qua Res Tes Acc Com Slots Evolved 18 | . . . 2 . . . 2 2 . . . . 2 . . . . 2 . . . . 2 . . . . 2 . 2 . 2 . Power 2 | . . . . . . . . . . . . . . . . . . . . . . . . . . . . 1 . 1 . . . Propulsion 4 | . . . 1 . . . . . . . . . 1 . . . . . . . . . 2 . . . . . . . . . . Utility 10 | . . . 1 . . . 1 2 . . . . 1 . . . . 2 . . . . . . . . . . . 1 . 2 . Weapon 2 | . . . . . . . 1 . . . . . . . . . . . . . . . . . . . . 1 . . . . . Parts Attached 740 | 6 20 3 47 15 . 2 33 37 11 16 2 3 29 32 11 8 6 101 15 1 14 17 21 6 14 8 . 9 90 11 70 35 47 Power 38 | 1 2 . 4 . . . 3 . 1 . . . 1 2 1 . . 3 . . 1 . 1 . . 1 . 1 4 1 4 4 3 Engine 12 | 1 2 . 4 . . . 3 . . . . . . 1 . . . 1 . . . . . . . . . . . . . . . Core 5 | . . . . . . . . . 1 . . . 1 1 . . . 1 . . . . 1 . . . . . . . . . . Reactor 21 | . . . . . . . . . . . . . . . 1 . . 1 . . 1 . . . . 1 . 1 4 1 4 4 3 Propulsion 104 | 2 7 . 11 2 . . 12 9 . 4 . . 3 8 4 . . 9 1 . 2 1 4 . . . . . 11 1 9 2 2 Treads 70 | 2 2 . 6 1 . . 8 3 . 2 . . 2 6 4 . . 7 . . . 1 4 . . . . . 10 1 7 2 2 Leg 10 | . 5 . 1 . . . . . . . . . . . . . . 1 . . 2 . . . . . . . . . 1 . . Wheel 22 | . . . 4 1 . . 4 6 . 2 . . 1 2 . . . 1 1 . . . . . . . . . . . . . . Hover 1 | . . . . . . . . . . . . . . . . . . . . . . . . . . . . . 1 . . . . Flight 1 | . . . . . . . . . . . . . . . . . . . . . . . . . . . . . . . 1 . . Utility 370 | 1 7 1 12 8 . 1 12 18 10 5 . 3 18 16 2 5 3 49 8 1 8 10 8 5 10 3 . 7 53 7 43 15 21 Device 258 | . 2 1 6 3 . 1 6 11 7 4 . 2 8 6 2 3 3 32 8 . 6 9 6 5 10 3 . 6 46 1 34 12 15 Storage 11 | 1 1 . 2 . . . 1 . . . . . 1 1 . . . 1 . . 1 . . . . . . . . . 2 . . Processor 18 | . . . . . . . 1 1 . . . . 2 2 . . . 2 . . . . . . . . . 1 2 2 3 1 1 Hackware 7 | . . . . . . . . . . . . . . . . . . 2 . . . . . . . . . . . 2 1 1 1 Protection 75 | . 4 . 4 5 . . 4 6 3 1 . 1 7 7 . 2 . 12 . 1 1 1 2 . . . . . 4 2 3 1 4 Artifact 1 | . . . . . . . . . . . . . . . . . . . . . . . . . . . . . 1 . . . . Weapon 228 | 2 4 2 20 5 . 1 6 10 . 7 2 . 7 6 4 3 3 40 6 . 3 6 8 1 4 4 . 1 22 2 14 14 21 Energy Gun 8 | 2 2 . . . . . . . . . . . . . . . . . 1 . . . . . . . . . 1 . 2 . . Energy Cannon 42 | . . 1 6 1 . 1 1 1 . 1 . . 1 1 1 . 1 4 2 . . 1 1 1 2 1 . . 3 . 2 2 7 Ballistic Gun 92 | . 2 1 9 2 . . 5 4 . 3 2 . 3 3 1 3 1 20 2 . . 3 5 . . 3 . 1 5 . 3 6 5 Ballistic Cannon 6 | . . . . . . . . . . . . . . . . . . 1 . . . . . . . . . . 2 . . . 3 Launcher 34 | . . . 5 2 . . . 1 . . . . . 1 1 . . 3 . . 1 2 . . 2 . . . 5 1 3 3 4 Special Weapon 1 | . . . . . . . . . . . . . . . . . . . . . . . . . . . . . . . . . 1 Impact Weapon 37 | . . . . . . . . 2 . 3 . . 3 1 1 . 1 12 1 . 2 . 2 . . . . . 3 1 4 . 1 Slashing Weapon 8 | . . . . . . . . 2 . . . . . . . . . . . . . . . . . . . . 3 . . 3 . Piercing Weapon . | . . . . . . . . . . . . . . . . . . . . . . . . . . . . . . . . . . Special Melee Weapon . | . . . . . . . . . . . . . . . . . . . . . . . . . . . . . . . . . . Unidentified Prototypes 31 | . . . 2 . . . . 1 . . . . 2 . 2 1 2 3 . . 3 . 1 . 1 2 . . 3 . 8 . . Corrupted Parts 8 | . . . . . . . . . . . . . . . . 1 . . . . . 2 . . . . . . 5 . . . . System Corruption 54 | . . . . . . . . . . . . . . . . 2 . . . . . 20 . . . . . . 32 . . . . Parts Lost 84 | . 2 . 4 5 . . 5 1 . . . . 2 6 . . . 18 . . . 3 1 . . . . 2 22 . 3 5 5 Power 14 | . 1 . 1 . . . 2 . . . . . . 1 . . . 2 . . . . 1 . . . . . 3 . . 2 1 Propulsion 12 | . . . 1 2 . . . . . . . . . 2 . . . 4 . . . . . . . . . . 3 . . . . Utility 36 | . . . 1 2 . . 2 . . . . . 2 2 . . . 6 . . . 1 . . . . . 2 10 . 3 3 2 Weapon 22 | . 1 . 1 1 . . 1 1 . . . . . 1 . . . 6 . . . 2 . . . . . . 6 . . . 2 Highest Loss Streak 11 | . 1 . 2 5 . . 2 1 . . . . 2 2 . . . 9 . . . 2 1 . . . . 2 11 . 2 1 2 To Critical Strikes 1 | . . . . . . . . . . . . . . . . . . 1 . . . . . . . . . . . . . . . Average Slot Usage (%) 91 | . 97 100 99 99 100 100 97 100 92 91 77 91 94 99 98 92 89 88 94 94 95 95 85 84 84 69 85 84 72 76 76 82 83 Engine 3 | . 14 14 10 11 11 11 8 7 2 . . . . 4 1 . . . . . . . . . . . . . . . . . . Core 1 | . . . . . . . . . 4 7 7 7 6 1 . . . 1 5 5 3 . 1 5 5 1 . . . . . . . Reactor 2 | . . . . . . . . . . . . . . . 4 6 6 2 . . 1 5 3 . . 3 5 7 6 6 8 9 11 Treads 13 | . 16 . 17 21 22 22 19 7 7 7 7 7 13 24 24 20 20 13 11 11 9 5 12 15 15 15 15 13 9 14 13 10 11 Leg 2 | . 11 28 5 . . . . . . . . . . . . . . . 5 5 6 11 4 . . . . . . . . . . Wheel 3 | . . . 10 10 11 11 7 14 15 14 15 15 12 1 . . . . 4 5 5 2 . . . . . . . . . . . Device 9 | . 2 2 4 4 . 5 8 17 14 14 15 14 7 1 6 6 9 8 11 10 10 12 13 10 13 13 15 17 16 10 12 8 13 Storage 6 | . 14 14 11 11 11 11 9 7 7 7 7 7 6 6 6 6 6 5 5 5 5 5 5 5 5 5 5 4 4 4 4 3 3 Processor 17 | . . . . . . . 8 15 15 15 15 15 18 25 26 26 26 28 29 29 29 29 26 26 25 25 25 17 18 24 18 18 19 Protection 6 | . 10 11 17 16 22 16 8 4 . . . . 7 11 6 5 . 2 . . 1 4 1 5 5 5 5 4 2 . 7 10 2 Energy Gun 2 | . 23 14 2 . . . . . . . . . . . . . . . . . . . . . . . . . . . . . . Energy Cannon 1 | . . . 5 6 . 10 2 . . 1 . . . . 5 . . 1 . . . 3 1 1 4 . 5 4 1 . . . 1 Ballistic Gun 12 | . 3 13 13 11 22 11 23 18 23 16 1 15 14 19 8 19 13 11 11 17 11 5 9 13 10 . 10 13 5 . 1 7 10 Impact Weapon 1 | . . . . . . . . 1 . 4 7 7 4 . 3 . 5 2 3 . 4 5 3 . . . . . . 3 3 . . Naked Turns . | . . . . . . . . . . . . . . . . . . . . . . . . . . . . . . . . . . Heaviest Build 205 | 14 51 50 102 102 99 100 105 109 109 110 107 108 128 131 136 142 123 148 111 113 138 116 113 110 112 115 115 135 151 158 179 184 205 Greatest Support 235 | 40 40 20 63 16 16 16 63 26 26 26 26 26 26 90 140 140 140 150 10 10 50 70 210 210 210 210 210 210 210 213 235 235 235 Greatest Overweight (x) 13 | . 2 2 10 10 6 6 10 4 4 4 4 4 6 10 1 1 . 10 11 11 13 2 1 . . . . . 1 . 1 . . Average Overweight (x) 2 | . 1 2 7 7 6 6 8 3 4 3 3 4 3 2 . . . 1 10 10 9 1 . . . . . . . . . . . Largest Inventory Capacity 25 | 8 20 20 25 25 25 25 25 25 25 25 25 25 25 25 25 25 25 25 25 25 25 25 25 25 25 25 25 25 25 25 25 25 25 Average Capacity 24 | 7 18 20 23 25 25 25 25 25 25 25 25 25 25 25 25 25 25 25 25 25 25 25 25 25 25 25 25 25 25 25 25 25 25 Most Carried 25 | 2 20 20 25 25 25 25 25 25 25 25 25 25 25 25 25 25 25 25 25 25 25 25 25 25 25 25 25 25 25 25 25 25 25 Average Carried 23 | 1 13 19 22 24 25 25 24 24 24 25 25 24 24 24 24 24 24 24 23 25 24 24 24 25 24 24 25 24 23 24 24 23 24 Final Capacity 25 | 8 20 20 25 25 25 25 25 25 25 25 25 25 25 25 25 25 25 25 25 25 25 25 25 25 25 25 25 25 25 25 25 25 25 Final Carried 25 | 2 20 20 25 25 25 25 25 25 25 25 25 25 24 25 25 25 25 23 25 25 25 25 25 25 25 25 25 25 25 25 25 24 22 Class Distribution -------------------- 21% | Scavenger-Assassin 19% | Mutant 12% | Scavenger-Mutant 12% | Scavenger-Skirmisher 9% | Scavenger-Gunner 3% | Generator-Mutant Dominant Class ---------------- Mutant | -10/Materials Mutant | -10/Mines Mutant | -9/Materials Mutant | -9/Mines Mutant | -9/Exiles Mutant | -8/Mines Tank | -8/Materials Scavenger-Assassin | -7/Factory Scavenger-Skirmisher | -7/Lower Caves Scavenger-Assassin | -7/Lower Caves Assassin | -7/Data Miner Scavenger-Assassin | -6/Proximity Caves Scavenger-Assassin | -6/Factory Commander-Tank | -6/Extension Commander-Assassin | -6/Cetus Scavenger-Gunner | -6/Archives Scavenger-Mutant | -6/Hub_04(d) Scavenger-Assassin | -5/Factory Scavenger-Assassin | -5/Upper Caves Scavenger-Skirmisher | -5/Upper Caves Scavenger-Assassin | -5/Warlord Scavenger-Assassin | -4/Proximity Caves Scavenger-Mutant | -4/Factory Trapper-Skirmisher | -4/Upper Caves Trapper-Mutant | -4/Upper Caves Trapper-Mutant | -4/Zhirov Trapper-Skirmisher | -3/Proximity Caves Scavenger-Mutant | -3/Research Scavenger-Mutant | -3/Quarantine Scavenger-Assassin | -2/Research Generator-Assassin | -2/Testing Scavenger-Assassin | -1/Access Generator-Mutant | -1/Command Resources | -11 -10 -10 -9 -9 -9 -8 -8 -7 -7 -7 -7 -6 -6 -6 -6 -6 -6 -5 -5 -5 -5 -4 -4 -4 -4 -4 -3 -3 -3 -2 -2 -1 -1 ----------- Run | Scr Mat Min Mat Min Exi Min Mat Fac Low Low Dat Pro Fac Ext Cet Arc Hub Fac Upp Upp War Pro Fac Upp Upp Zhi Pro Res Qua Res Tes Acc Com Matter Collected 16068 | 241 616 40 808 318 30 25 840 531 279 262 . 90 745 992 169 344 60 2146 199 20 188 180 433 120 337 39 . 308 2184 274 1377 578 1295 Remotely 2534 | . . . . . . . 101 96 142 106 . . 297 371 . . . 658 . . . . . . 96 . . . 507 . 50 110 . Salvage Created 20843 | . 1306 106 1753 186 . 116 1165 531 25 136 . 5 645 961 . 381 58 3618 123 . . 508 577 98 420 39 . 506 1931 164 2704 904 1877 Parts 986 | . 86 6 89 6 . 4 54 19 . 2 . 1 35 46 . 28 3 158 5 . . 22 20 5 18 1 . 20 102 6 125 45 80 Haulers Intercepted 21 | . 2 . 6 . . . 2 . . . . . . . . . . 9 . . . . 1 . . . . 1 . . . . . Recyclers Shooed 15 | . 1 . 3 . . . . . . . . . 3 . . . . 2 . . . . 1 . . . . . 2 . . 1 2 Parts Field Recycled . | . . . . . . . . . . . . . . . . . . . . . . . . . . . . . . . . . . Retrieved Matter . | . . . . . . . . . . . . . . . . . . . . . . . . . . . . . . . . . . Parts Self-Destructed 100 | . . . . . . . . . 2 1 . 7 . . . . . . 4 . 63 9 . 5 8 1 . . . . . . . Prevented 24 | . . . . . . . . . . . . . . . . . . . . . 1 13 . . 10 . . . . . . . . Kills | -11 -10 -10 -9 -9 -9 -8 -8 -7 -7 -7 -7 -6 -6 -6 -6 -6 -6 -5 -5 -5 -5 -4 -4 -4 -4 -4 -3 -3 -3 -2 -2 -1 -1 ------- Run | Scr Mat Min Mat Min Exi Min Mat Fac Low Low Dat Pro Fac Ext Cet Arc Hub Fac Upp Upp War Pro Fac Upp Upp Zhi Pro Res Qua Res Tes Acc Com Combat Hostiles Destroyed 274 | . 19 2 22 20 . 2 17 2 1 1 . 1 6 14 . 1 . 37 2 . . 7 7 1 6 . . 4 25 . 38 19 20 Melee 31 | . . . . . . . . . . . . . . . . . . . . . . . . . . . . . 4 . 23 3 1 Guns 143 | . 17 . 11 3 . 2 15 2 1 . . 1 6 14 . 1 . 28 2 . . . 6 1 1 . . 4 9 . 3 8 8 Cannons 27 | . . 2 10 1 . . 2 . . . . . . . . . . 3 . . . 2 1 . 2 . . . 3 . . . 1 AOE 44 | . 1 . 1 16 . . . . . 1 . . . . . . . 6 . . . 4 . . . . . . 2 . 4 6 3 Classes Destroyed 24 | . 8 . 3 2 . . 1 1 . 1 . . 1 . . . . 2 . . . . . . . . . . 1 . 2 1 1 Worker 27 | . 4 . 4 . . . . 3 . . . . 2 1 . . 2 6 . . . . . . . . . . 1 . 2 . 2 Builder 24 | . 5 . 1 1 . . 1 . . . . . 1 2 . . . 3 . . . . 2 . . . . 2 4 . 1 1 . Tunneler 3 | . . . . . . . . . . . . . . . . . . 1 . . . . . . . . . 1 . . . 1 . Hauler 21 | . 2 . 6 . . . 2 . . . . . . . . . . 9 . . . . 1 . . . . 1 . . . . . Recycler 20 | . 2 . 4 . . . 1 4 . . . . 1 . . . . 3 . . . . 1 . . . . . 1 1 . 1 1 Minesweeper 3 | . . . . . . . . . . 1 . . . . . . . . 1 . . . . 1 . . . . . . . . . Operator 17 | . 2 . . . . . 1 . . . . . . 2 . 9 1 . . . . . . . . . . . 1 . 1 . . Watcher 14 | . 2 . 2 . . . 2 . . . . . . . . . . 3 . . . . . . . . . . 2 1 2 . . Swarmer 42 | . 3 . . . . . . . . . . 1 . . . . . 9 . . . . 4 . . . . . 4 . 8 9 4 Saboteur 1 | . . . . . . . . . . . . . . . . . . . . . . . . . . . . . . . . 1 . Grunt 99 | . 16 2 15 3 . 1 12 . 1 . . . . 8 . . . 11 1 . . 4 . . . . . 3 3 . 6 2 11 Brawler 4 | . . . 1 . . 1 . . . . . . . 1 . . . . . . . . . . . . . 1 . . . . . Duelist 3 | . . . 1 . . . . . . . . . . . . . . . . . . . . . . . . . . . . 2 . Sentry 29 | . . . 5 . . . 3 1 . . . . 1 5 . 1 . 6 1 . . . 1 . . . . . 1 . . 1 3 Demolisher 2 | . . . . 2 . . . . . . . . . . . . . . . . . . . . . . . . . . . . . Specialist 4 | . . . . . . . . . . . . . 2 . . . . . . . . . . . . . . . . . 2 . . Hunter 25 | . . . . . . . 2 . . 1 . . . . . . . 5 . . . 1 . . 4 . . . 8 . 3 1 . Programmer 41 | . . . . . . . . 1 . . . . 3 . . . . 5 . . . 2 2 1 2 . . . 8 . 14 2 1 Heavy 2 | . . . . . . . . . . . . . . . . . . 1 . . . . . . . . . . . . . 1 . Behemoth 1 | . . . . . . . . . . . . . . . . . . . . . . . . . . . . . . . . . 1 Enhanced Grunt 4 | . . . . . . . . . . . . . 1 . . . . 3 . . . . . . . . . . . . . . . Striker 2 | . . . . . . . . . . . . . . . . . . . . . . . . . . . . . . . 2 . . Alpha 7 2 | . . . . . . . . . . . . . . . . . . . . . . . . . . . . . 1 . 1 . . Protovariant D 1 | . . . . . . . . . . . . . . . . . . . . . . . . . . . . . . . 1 . . Assembled 15 | . . . . 15 . . . . . . . . . . . . . . . . . . . . . . . . . . . . . Fireman 1 | . . . . . . . . . . . . . . . . . . . . . . . . . . . . . . . 1 . . Best Kill Streak 12 | . 4 2 5 12 . 2 5 2 1 1 . 1 3 4 . 3 2 8 1 . . 4 6 1 2 . . 4 5 1 9 8 6 Combat Bots Only 12 | . 3 2 4 12 . 2 3 1 1 1 . 1 3 4 . 1 . 6 1 . . 4 4 1 2 . . 4 3 . 9 6 5 Max Kills in Single Turn 4 | . 2 1 1 2 . 1 2 1 1 1 . 1 1 1 . 1 2 4 1 . . 3 2 1 1 . . 2 2 1 4 2 2 Gunslinging 1 | . . . . 1 . . . . . . . . . . . . . 1 . . . . . . . . . . . . . 1 . Exploded 4 | . 1 . 1 2 . . . . . 1 . . . . . . . 4 . . . 3 . . . . . . 1 . 3 2 1 Melee 1 | . . . . . . . . . . . . . . . . . . . . . . . . . . . . . 1 . 1 1 1 Uniques/NPCs Destroyed . | . . . . . . . . . . . . . . . . . . . . . . . . . . . . . . . . . . Combat | -11 -10 -10 -9 -9 -9 -8 -8 -7 -7 -7 -7 -6 -6 -6 -6 -6 -6 -5 -5 -5 -5 -4 -4 -4 -4 -4 -3 -3 -3 -2 -2 -1 -1 -------- Run | Scr Mat Min Mat Min Exi Min Mat Fac Low Low Dat Pro Fac Ext Cet Arc Hub Fac Upp Upp War Pro Fac Upp Upp Zhi Pro Res Qua Res Tes Acc Com Damage Taken 28146 | . 780 32 944 849 . 44 1019 113 . 28 . . 539 1651 . 58 100 4983 117 134 227 421 742 41 403 . . 471 5652 237 3767 3036 1758 Core 2067 | . 140 32 180 40 . . 159 17 . . . . 49 101 . 23 . 529 . . 19 36 18 21 20 . . 17 428 . 124 58 56 Absorbed by Shields 2073 | . 21 . 9 . . . . . . . . . 187 . . . . . . . . 19 . . . . . . 441 . 724 219 453 Reduced by Siege Mode 111 | . . . . . . . . . . . . . . . . . . 53 . . . . . . . . . . 39 . . . 19 Redirected to Shielding 337 | . 71 . 52 . . . . 18 . 10 . . 74 . . . . 112 . . . . . . . . . . . . . . . Regen/Repaired (Parts) 3441 | . 58 . . . . . 90 . . . . . . . . . . . . . . . . . . . . . 451 89 1252 1291 210 Core Remaining (%) 73 | 100 . 31 . . . 45 71 . . . . 97 . . . . 79 . . . . 41 . . . . 94 . 65 . 91 . 92 Volleys Fired 909 | . 93 3 99 26 . 5 55 22 1 3 . 3 22 60 2 22 1 172 12 . . 14 30 7 22 5 . 16 105 . 30 27 52 Largest 4 | . 2 2 2 2 . 2 3 3 3 3 . 2 3 3 1 3 1 3 3 . . 2 3 3 3 1 . 4 4 . 2 4 4 Hottest 270 | . 90 106 106 79 . 79 107 84 84 119 . 56 84 84 63 105 35 158 90 . . 90 98 96 93 38 . 186 186 . 90 270 228 Shots Fired 1873 | . 160 6 192 35 . 10 159 55 4 7 . 6 59 180 2 66 1 348 19 . . 18 57 18 37 5 . 51 189 . 37 60 92 Gun 1455 | . 160 3 127 12 . 5 143 54 4 5 . 6 57 179 . 66 1 281 12 . . 4 41 15 22 5 . 42 93 . 19 46 53 Cannon 298 | . . 3 59 6 . 5 16 . . 2 . . 2 . 2 . . 63 7 . . 8 16 3 9 . . 9 51 . 9 4 24 Launcher 119 | . . . 6 17 . . . 1 . . . . . 1 . . . 4 . . . 6 . . 6 . . . 45 . 9 10 14 Special 1 | . . . . . . . . . . . . . . . . . . . . . . . . . . . . . . . . . 1 Kinetic 1290 | . 4 . 101 12 . 5 143 54 4 5 . 6 57 179 . 66 1 285 12 . . 4 41 15 22 5 . 42 107 . 19 46 55 Thermal 267 | . 55 3 26 . . . . . . . . . . . . . . 59 7 . . 8 16 3 9 . . 9 37 . 9 4 22 Explosive 33 | . . . 6 17 . . . 1 . . . . . 1 . . . 4 . . . . . . . . . . . . . 4 . Electromagnetic 282 | . 101 3 59 6 . 5 16 . . 2 . . 2 . 2 . . . . . . 6 . . 6 . . . 45 . 9 6 14 Robot Hit Streak 44 | . 14 19 23 7 . 6 15 6 3 2 . 1 13 44 3 16 . 31 32 . . 17 7 8 4 4 . 11 25 . 7 10 29 Robot Miss Streak 7 | . 5 . 4 1 . 1 3 2 1 1 . 2 2 2 . 3 . 4 1 . . . 2 1 3 1 . 1 7 . 3 3 3 Penetration Max 2 | . . . . . . . 1 . . . . . 1 1 . 1 . 1 . . . . 1 . . . . . 1 . 2 1 2 Secondary Targets 19 | . 1 . 3 1 . . 1 . . . . . 1 . . . . 7 . . . . . . . . . 2 . . . 3 . Max Gunslinging Chain 2 | . 1 . 1 1 . . 1 . . . . . 1 . . . . 1 . . . . . . . . . 1 . . . 2 . Shots Hit Robots 1354 | . 106 6 128 18 . 8 104 32 1 5 . 2 47 140 2 37 1 276 11 . . 8 39 12 12 3 . 38 114 2 96 51 55 Core Hits 673 | . 52 4 56 40 . 4 43 11 1 3 . 1 21 48 . 19 5 106 4 . . 15 12 4 9 5 . 15 55 2 52 38 48 Critical Kills 31 | . . . . . . . . . . . . . . . . 3 . 11 1 . . . . . . . . 2 1 . 1 5 7 Critical Parts Destroyed 55 | . . . 1 . . . 1 1 . 1 . . 4 4 . 5 . 15 1 . . . 2 2 2 1 . . . . 6 2 7 Critical Strikes 109 | . 5 . 4 . . 1 1 1 . 1 . . 4 4 . 8 . 27 2 . . . 2 2 2 1 . 2 3 . 15 10 14 Burn 6 | . 5 . 1 . . . . . . . . . . . . . . . . . . . . . . . . . . . . . . Meltdown 2 | . . . . . . . . . . . . . . . . . . . . . . . . . . . . . . . . . 2 Destroy 78 | . . . 1 . . . 1 . . . . . 3 4 . 8 . 24 2 . . . 1 2 2 1 . 2 1 . 7 7 12 Blast 2 | . . . . . . . . . . . . . . . . . . . . . . . . . . . . . 2 . . . . Corrupt 3 | . . . 2 . . 1 . . . . . . . . . . . . . . . . . . . . . . . . . . . Smash 7 | . . . . . . . . 1 . 1 . . 1 . . . . 3 . . . . 1 . . . . . . . . . . Sever 11 | . . . . . . . . . . . . . . . . . . . . . . . . . . . . . . . 8 3 . Melee Attacks 298 | . . . . . . . . 14 . 28 . . 15 . 1 . 3 32 3 . 5 7 13 . . . . . 14 3 126 34 . Kinetic 36 | . . . . . . . . . . . . . . . . . . . . . . . . . . . . . 1 1 34 . . Impact 110 | . . . . . . . . 3 . 28 . . 15 . 1 . 3 32 3 . 5 7 13 . . . . . . . . . . Slashing 152 | . . . . . . . . 11 . . . . . . . . . . . . . . . . . . . . 13 2 92 34 . Piercing . | . . . . . . . . . . . . . . . . . . . . . . . . . . . . . . . . . . Sneak Attacks 37 | . . . . . . . . 3 . 1 . . 3 . . . 1 13 1 . . . 5 . . . . . 2 1 7 . . Combat Hostiles 6 | . . . . . . . . . . . . . . . . . . . . . . . . . . . . . . . 6 . . Follow-up Attacks 14 | . . . . . . . . . . . . . . . . . . . . . . . . . . . . . . . 14 . . Damage Inflicted 48609 | . 1630 108 2644 1315 . 134 2255 781 19 333 . 40 1425 2713 44 1103 445 8910 346 . . 785 1497 322 727 218 . 1148 4697 293 6941 4279 3457 Guns 22187 | . 1388 37 1161 153 . 73 1752 581 19 15 . 40 1037 2684 . 1103 . 5909 216 . . 63 702 289 172 91 . 770 1468 . 548 781 1135 Cannons 5738 | . . 71 1103 140 . 61 378 . . 54 . . 43 . 44 . . 977 . . . 133 130 33 101 . . 378 1141 . . 242 709 Explosions 9294 | . 229 . 380 1022 . . 125 . . 48 . . . . . . 344 452 . . . 589 48 . 454 . . . 1391 . 706 1941 1565 Melee 11070 | . . . . . . . . 200 . 216 . . 345 . . . 101 1572 130 . . . 617 . . . . . 697 293 5642 1257 . Ramming 320 | . 13 . . . . . . . . . . . . 29 . . . . . . . . . . . 127 . . . . 45 58 48 Kinetic 22877 | . 43 . 899 153 . 73 1752 581 19 15 . 40 1037 2684 . 1103 . 6104 216 . . 63 702 289 172 91 . 770 2058 . 1964 781 1268 Thermal 4980 | . 704 37 302 45 . . 125 . . 48 . . . . . . . 782 . . . 133 178 33 101 . . 378 551 . . 536 1027 Explosive 3284 | . . . 340 977 . . . . . . . . . . . . . 452 . . . . . . . . . . . . . 1515 . Electromagnetic 7494 | . 870 71 1103 140 . 61 378 . . 54 . . 43 . 44 . 344 . . . . 589 . . 454 . . . 1391 . 706 132 1114 Impact 3057 | . . . . . . . . 76 . 216 . . 345 . . . 101 1572 130 . . . 617 . . . . . . . . . . Slashing 6597 | . . . . . . . . 124 . . . . . . . . . . . . . . . . . . . . 697 293 4226 1257 . Piercing . | . . . . . . . . . . . . . . . . . . . . . . . . . . . . . . . . . . Highest Corruption 57 | . 2 2 . . . . . 5 5 5 5 5 3 3 3 3 1 3 3 3 3 21 2 3 5 5 5 3 57 . 17 11 11 Average Corruption 4 | . 1 2 . . . . . 3 5 5 5 5 2 3 3 2 1 2 3 3 3 1 1 2 3 5 5 2 11 . 11 7 7 Corruption Purged 20 | . . . . . . . . . . . . . . . . 5 . . . . . . . . . . . . 1 . . . 14 Corruption Blocked . | . . . . . . . . . . . . . . . . . . . . . . . . . . . . . . . . . . Effects 500 | . 29 20 . . . . . 15 28 25 4 18 1 42 8 3 . 28 14 8 1 4 5 9 19 13 4 5 91 . 51 24 31 Message Errors 127 | . 9 4 . . . . . 6 5 7 2 3 1 15 1 . . 7 5 2 . 2 1 2 3 5 1 . 21 . 10 5 10 Matter Fused 105 | . 7 4 . . . . . 4 8 5 . 2 . 4 2 . . 6 2 1 1 2 1 . 8 4 1 4 19 . 8 5 7 Heat Flow Errors 66 | . 5 2 . . . . . 1 2 4 2 3 . 3 3 . . 5 2 1 . . 2 2 1 1 1 . 11 . 9 4 2 Energy Discharges 58 | . 2 6 . . . . . 1 4 . . 4 . 5 1 . . 2 1 3 . . 1 . 3 2 . . 13 . 6 3 1 Parts Rejected 8 | . 1 . . . . . . . . . . . . 2 1 . . 1 . . . . . . . . . . 2 . . 1 . Data Loss (minor) 72 | . 1 4 . . . . . 2 5 6 . 3 . 6 . 2 . 1 2 1 . . . 3 2 1 1 1 19 . 8 1 3 Data Loss (major) 28 | . 1 . . . . . . . 2 3 . 3 . 2 . . . 2 1 . . . . 1 2 . . . 2 . 4 4 1 Misfires 11 | . 1 . . . . . . 1 1 . . . . 3 . 1 . . 1 . . . . . . . . . 1 . . . 2 Alerts 10 | . . . . . . . . . 1 . . . . 1 . . . 2 . . . . . . . . . . 1 . 3 1 1 Misdirections 3 | . . . . . . . . . . . . . . . . . . . . . . . . . . . . . . . 1 . 2 Weapon Failures 12 | . 2 . . . . . . . . . . . . 1 . . . 2 . . . . . 1 . . . . 2 . 2 . 2 Overload Shots 61 | . . . . . . . . . . . . . . . . . . 9 6 . . 4 7 1 5 . . 9 16 . 4 . . Effects 6 | . . . . . . . . . . . . . . . . . . . 1 . . 1 1 . . . . 2 . . 1 . . Energy Bleed 3 | . . . . . . . . . . . . . . . . . . . . . . 1 . . . . . 2 . . . . . Heat Surge 2 | . . . . . . . . . . . . . . . . . . . 1 . . . 1 . . . . . . . . . . Short Circuit 1 | . . . . . . . . . . . . . . . . . . . . . . . . . . . . . . . 1 . . Overflow Damage 3185 | . 26 . 33 38 . . 9 109 . 95 . . 247 . . . 91 870 90 . . . 218 . 37 1 . 32 264 . 424 593 8 Projectiles 111 | . . . 22 . . . . . . . . . . . . . . 22 . . . . 21 . . . . 32 14 . . . . Explosions 610 | . 26 . 11 38 . . 9 . . . . . . . . . . 40 . . . . . . 37 . . . 41 . . 400 8 Melee 2464 | . . . . . . . . 109 . 95 . . 247 . . . 91 808 90 . . . 197 . . 1 . . 209 . 424 193 . Knockbacks 19 | . . . . . . . . 1 . . . . . . . . . 5 . . . . 3 . . . . . 5 . 1 1 3 Impact 9 | . . . . . . . . 1 . . . . . . . . . 3 . . . . 3 . . . . . . . 1 1 . Kinetic 9 | . . . . . . . . . . . . . . . . . . 2 . . . . . . . . . . 5 . . . 2 Secondary 1 | . . . . . . . . . . . . . . . . . . . . . . . . . . . . . . . . . 1 Self-Inflicted Damage 872 | . 71 . 63 185 . . 32 . . . . . . . . . 100 108 . . . . . . . . . . 213 . 16 13 71 Shots 38 | . 1 . 2 5 . . 1 . . . . . . . . . 1 3 . . . . . . . . . . 13 . 3 1 8 Rammed 31 | . 4 . . . . . . . . . . . . . . . . . . . . . . . . 19 . . . . 1 3 4 Targets Rammed 36 | . 6 1 1 . . . . . . . . . . 1 . . . . . . . . . . . 19 . . . . 1 3 4 Kicked 4 | . 2 1 1 . . . . . . . . . . . . . . . . . . . . . . . . . . . . . . Crushed 1 | . . . . . . . . . . . . . . 1 . . . . . . . . . . . . . . . . . . . Highest Temperature 465 | . 465 153 394 98 . 136 213 210 201 261 196 184 56 294 226 99 . 271 295 240 . 56 251 264 192 258 151 364 199 93 349 239 390 Average Temperature 68 | . 83 74 95 32 . 63 63 110 94 114 92 77 21 92 81 38 . 55 115 115 . 27 79 92 44 16 10 61 69 48 82 61 75 Received Heat Transfer 3443 | . 349 18 405 59 . 18 441 . . . . . 90 564 . 9 . 808 27 76 . 69 18 . . . . 60 84 . 98 154 96 Effects 13 | . 6 . 3 . . . . . . . . . . 1 . . . . 1 . . . . . . . . 1 . . . . 1 Shutdowns 2 | . 1 . 1 . . . . . . . . . . . . . . . . . . . . . . . . . . . . . . Energy Bleed 6 | . 1 . 1 . . . . . . . . . . 1 . . . . 1 . . . . . . . . 1 . . . . 1 Interference 2 | . 2 . . . . . . . . . . . . . . . . . . . . . . . . . . . . . . . . Matter Decay 1 | . 1 . . . . . . . . . . . . . . . . . . . . . . . . . . . . . . . . Short Circuit 1 | . . . 1 . . . . . . . . . . . . . . . . . . . . . . . . . . . . . . Damage (minor) 1 | . 1 . . . . . . . . . . . . . . . . . . . . . . . . . . . . . . . . Siege Activations 12 | . . . . . . . . . . . . . . . . 1 1 6 . . . . . . . . . . 2 . . . 2 Total Turns 126 | . . . . . . . . . . . . . . . . 5 3 68 . . . . . . . . . . 37 . . . 13 Longest Duration 28 | . . . . . . . . . . . . . . . . 5 3 15 . . . . . . . . . . 28 . . . 8 Robots Corrupted 22 | . . . 2 . . . . . . . . . . . . . . . . . . 1 . . 3 . . . 7 . 3 1 5 Combat Hostiles 20 | . . . . . . . . . . . . . . . . . . . . . . 1 . . 3 . . . 7 . 3 1 5 Parts Fried 79 | . 3 . 10 1 . . 1 . . 2 . . 2 . . . 1 14 2 . . 8 6 . 4 . . . 14 . 2 1 8 Impact Corruptions 48 | . . . . . . . . 2 . 3 . . 8 . . . 2 20 2 . . . 8 . . 1 . . . . 1 1 . Robots Melted 4 | . 1 . . . . . . . . . . . . . . . . . . . . . . . . . . . . . . 1 2 Combat Hostiles 4 | . 1 . . . . . . . . . . . . . . . . . . . . . . . . . . . . . . 1 2 Parts Melted 14 | . 3 . . . . . . . . . . . . . . . . . . . . 1 . . . . . . . . 3 2 5 Heat Transferred 7177 | . 1976 111 901 . . . 150 . . 50 . . . . . . . 1493 . . . 148 198 37 111 . . 350 703 . . 340 609 Parts Sabotaged . | . . . . . . . . . . . . . . . . . . . . . . . . . . . . . . . . . . Parts Stolen . | . . . . . . . . . . . . . . . . . . . . . . . . . . . . . . . . . . Parts Stripped . | . . . . . . . . . . . . . . . . . . . . . . . . . . . . . . . . . . Power Chain Reactions 10 | . 5 . 1 1 . . 1 . . 1 . . . . . . . . . . . . . . . . . . . . . . 1 Missiles Intercepted 3 | . . . . . . . . . . . . . . . . . . . . . . . . . . . . . . . . . 3 Alert | -11 -10 -10 -9 -9 -9 -8 -8 -7 -7 -7 -7 -6 -6 -6 -6 -6 -6 -5 -5 -5 -5 -4 -4 -4 -4 -4 -3 -3 -3 -2 -2 -1 -1 ------- Run | Scr Mat Min Mat Min Exi Min Mat Fac Low Low Dat Pro Fac Ext Cet Arc Hub Fac Upp Upp War Pro Fac Upp Upp Zhi Pro Res Qua Res Tes Acc Com Peak Influence 1175 | . 370 155 515 285 . 65 224 272 . . . . 229 505 783 543 244 856 . . . . 215 . . . . 126 307 192 767 811 1175 Initial 512 | . . 105 . 200 . . 25 78 . . . . . 102 247 233 . 98 . . . . . . . . . . . 150 . 460 512 Average 240 | . 230 39 277 172 . 54 94 122 . . . . 81 180 511 113 138 377 . . . . 43 . . . . 89 150 141 309 565 919 Maximum Alert Level 4 | . 1 . 2 1 . . 1 1 . . . . 1 2 3 2 1 3 . . . . 1 . . . . . 1 . 3 3 4 Low Security (%) 57 | 100 33 100 33 48 . 100 95 87 . . . . 94 74 . 79 69 33 . . . . 93 . . . . 100 68 100 30 . . Level 1 23 | . 66 . 45 51 . . 4 12 . . . . 5 8 12 12 30 22 . . . . 6 . . . . . 31 . 41 2 . Level 2 11 | . . . 21 . . . . . . . . . . 17 59 8 . 22 . . . . . . . . . . . . 22 79 9 Level 3 7 | . . . . . . . . . . . . . . . 27 . . 21 . . . . . . . . . . . . 5 17 82 Level 4 . | . . . . . . . . . . . . . . . . . . . . . . . . . . . . . . . . . 8 Level 5 . | . . . . . . . . . . . . . . . . . . . . . . . . . . . . . . . . . . High Security . | . . . . . . . . . . . . . . . . . . . . . . . . . . . . . . . . . . Max Security . | . . . . . . . . . . . . . . . . . . . . . . . . . . . . . . . . . . Squads Dispatched 78 | . 5 . 4 . . . 5 2 . . . . 6 3 1 . 1 14 . . . . 3 . . . . 3 5 1 9 7 9 Investigation 15 | . 3 . 3 . . . 2 1 . . . . 1 1 1 . . . . . . . . . . . . . . 1 1 . 1 Extermination 20 | . . . . . . . . 1 . . . . 1 . . . . 2 . . . . 2 . . . . . 4 . 5 2 3 Reinforcement 28 | . 2 . 1 . . . 2 . . . . . 3 2 . . 1 7 . . . . 1 . . . . 3 1 . 3 2 . Assault 9 | . . . . . . . . . . . . . . . . . . 1 . . . . . . . . . . . . . 3 5 Garrison 6 | . . . . . . . 1 . . . . . 1 . . . . 4 . . . . . . . . . . . . . . . Intercept . | . . . . . . . . . . . . . . . . . . . . . . . . . . . . . . . . . . Searches Triggered . | . . . . . . . . . . . . . . . . . . . . . . . . . . . . . . . . . . Data Miner Redirects 12 | . . . . . . . . . . . . . 1 1 1 . . 1 . . . . . . . . . . . . . 3 5 Construction Impeded 2 | . . . . . . . . . . . . . . 1 . . . 1 . . . . . . . . . . . . . . . Haulers Reinforced 1 | . . . . . . . . . . . . . . . . . . 1 . . . . . . . . . . . . . . . Active Scanning Responses . | . . . . . . . . . . . . . . . . . . . . . . . . . . . . . . . . . . Cargo Convoy Interrupts . | . . . . . . . . . . . . . . . . . . . . . . . . . . . . . . . . . . Stealth | -11 -10 -10 -9 -9 -9 -8 -8 -7 -7 -7 -7 -6 -6 -6 -6 -6 -6 -5 -5 -5 -5 -4 -4 -4 -4 -4 -3 -3 -3 -2 -2 -1 -1 --------- Run | Scr Mat Min Mat Min Exi Min Mat Fac Low Low Dat Pro Fac Ext Cet Arc Hub Fac Upp Upp War Pro Fac Upp Upp Zhi Pro Res Qua Res Tes Acc Com Distress Signals 34 | . 1 . 2 . . . 2 . . . . . . 5 2 . . 5 . . . . . . . . . 2 . 7 4 . 4 Communications Jammed 12 | . . . . . . . . . . . . . . . . . . 1 . . . . 3 . . . . . 8 . . . . Distress Signals 9 | . . . . . . . . . . . . . . . . . . . . . . . 1 . . . . . 8 . . . . Times Spotted 534 | . 32 2 34 23 . 3 28 3 . 1 . 1 8 32 19 17 3 66 2 5 28 7 15 1 6 . . 6 38 8 54 35 57 Peak Tracking Total 10 | . 3 2 5 6 . 3 5 1 . 1 . 1 3 6 8 1 2 6 1 5 10 4 5 1 2 . . 2 4 3 7 6 8 Tactical Retreats 29 | . 6 . 1 2 . 1 1 . . . . . . 1 . . . 3 . . . . . . . . . . 1 . 4 3 6 Traps | -11 -10 -10 -9 -9 -9 -8 -8 -7 -7 -7 -7 -6 -6 -6 -6 -6 -6 -5 -5 -5 -5 -4 -4 -4 -4 -4 -3 -3 -3 -2 -2 -1 -1 ------- Run | Scr Mat Min Mat Min Exi Min Mat Fac Low Low Dat Pro Fac Ext Cet Arc Hub Fac Upp Upp War Pro Fac Upp Upp Zhi Pro Res Qua Res Tes Acc Com Traps Triggered 20 | . 2 . 2 . . . . 5 . . . . . 7 . . . . . . . . . . . . . . 1 . 2 . 1 Indirectly . | . . . . . . . . . . . . . . . . . . . . . . . . . . . . . . . . . . Trap Hack Attempts . | . . . . . . . . . . . . . . . . . . . . . . . . . . . . . . . . . . Triggered . | . . . . . . . . . . . . . . . . . . . . . . . . . . . . . . . . . . Disarmed . | . . . . . . . . . . . . . . . . . . . . . . . . . . . . . . . . . . Reprogrammed . | . . . . . . . . . . . . . . . . . . . . . . . . . . . . . . . . . . Reused 6 | . . . . . . . . . . . . . . . . . . . . . . . 1 . . . . . 5 . . . . Traps Extracted 1 | . . . . . . . . . . . . . . . . . . . . . . . . . . . . . 1 . . . . Installed 12 | . . 5 . . . . . . . . . . . . . . . . . . . . 1 . . . . . 6 . . . . Triggered 12 | . . . . . . . . . . . . . . . . . . . . . 5 . 1 . . . 1 . 5 . . . . Most Traps Carried 7 | . . . . . . . . . . . . . . . . . . . 4 4 4 4 4 7 7 7 7 7 7 . . . . Machines | -11 -10 -10 -9 -9 -9 -8 -8 -7 -7 -7 -7 -6 -6 -6 -6 -6 -6 -5 -5 -5 -5 -4 -4 -4 -4 -4 -3 -3 -3 -2 -2 -1 -1 ---------- Run | Scr Mat Min Mat Min Exi Min Mat Fac Low Low Dat Pro Fac Ext Cet Arc Hub Fac Upp Upp War Pro Fac Upp Upp Zhi Pro Res Qua Res Tes Acc Com Machines Disabled 47 | . 4 . 2 . . . 1 1 . . . . . 1 1 3 4 5 . . . . 3 . . 1 . . 7 . 10 2 2 Max in Single Turn 4 | . 2 . 1 . . . 1 1 . . . . . 1 1 1 4 2 . . . . 3 . . 1 . . 1 . 2 1 1 Garrison Access 6 | . . . . . . . . 1 . . . . . . . . . 1 . . . . . . . . . . 1 2 . 1 . Network Hub 1 | . . . . . . . . . . . . . . . . . 1 . . . . . . . . . . . . . . . . Machines Sabotaged . | . . . . . . . . . . . . . . . . . . . . . . . . . . . . . . . . . . Garrisons Compromised . | . . . . . . . . . . . . . . . . . . . . . . . . . . . . . . . . . . Overloaded Fab Kills . | . . . . . . . . . . . . . . . . . . . . . . . . . . . . . . . . . . Hacking | -11 -10 -10 -9 -9 -9 -8 -8 -7 -7 -7 -7 -6 -6 -6 -6 -6 -6 -5 -5 -5 -5 -4 -4 -4 -4 -4 -3 -3 -3 -2 -2 -1 -1 --------- Run | Scr Mat Min Mat Min Exi Min Mat Fac Low Low Dat Pro Fac Ext Cet Arc Hub Fac Upp Upp War Pro Fac Upp Upp Zhi Pro Res Qua Res Tes Acc Com Machines Accessed 108 | . 10 1 12 . 1 . 6 8 1 1 4 . 3 8 1 . 3 7 . . 4 . 2 . . 4 . . 8 2 5 4 13 Terminals 71 | . 7 . 8 . . . 3 5 . . . . 3 8 1 . 3 6 . . . . 1 . . . . . 6 1 4 2 13 Fabricators 1 | . . . . . . . . 1 . . . . . . . . . . . . . . . . . . . . . . . . . Repair Stations 5 | . 1 . 1 . . . 1 . . . . . . . . . . . . . . . 1 . . . . . . . . 1 . Recycling Units 5 | . 2 . 2 . . . 1 . . . . . . . . . . . . . . . . . . . . . . . . . . Scanalyzers 4 | . . . 1 . . . . 1 . . . . . . . . . . . . . . . . . . . . 1 . 1 . . Garrison Access 6 | . . . . . . . 1 1 . . . . . . . . . 1 . . . . . . . . . . 1 1 . 1 . Total Hacks 331 | . 31 1 26 . 1 . 21 19 1 1 29 . 8 15 3 . 7 31 . . 15 . 12 . . 17 . . 26 6 9 12 40 Successful 192 | . 16 1 19 . 1 . 12 10 1 1 29 . 2 4 . . 4 10 . . 15 . 6 . . 17 . . 13 2 4 6 19 Failed 139 | . 15 . 7 . . . 9 9 . . . . 6 11 3 . 3 21 . . . . 6 . . . . . 13 4 5 6 21 Catastrophic 29 | . 1 . . . . . 2 3 . . . . 1 4 1 . 1 5 . . . . 1 . . . . . 2 . 3 1 4 Database Lockouts . | . . . . . . . . . . . . . . . . . . . . . . . . . . . . . . . . . . Manual 174 | . 22 . 17 . . . 13 12 . . . . 7 12 1 . 6 24 . . 1 . 8 . . . . . 16 1 5 9 20 Terminals 226 | . 25 . 19 . . . 15 14 . . . . 8 15 3 . 7 29 . . . . 10 . . . . . 21 5 6 9 40 Fabricators 1 | . . . . . . . . 1 . . . . . . . . . . . . . . . . . . . . . . . . . Repair Stations 11 | . 4 . 1 . . . 2 . . . . . . . . . . . . . . . 2 . . . . . . . . 2 . Recycling Units 6 | . 2 . 3 . . . 1 . . . . . . . . . . . . . . . . . . . . . . . . . . Scanalyzers 12 | . . . 3 . . . . 3 . . . . . . . . . . . . . . . . . . . . 3 . 3 . . Garrison Access 10 | . . . . . . . 3 1 . . . . . . . . . 2 . . . . . . . . . . 2 1 . 1 . Terminal Hacks 117 | . 4 1 9 . 1 . 4 2 1 1 29 . 2 3 . . 1 7 . . 15 . 2 . . 17 . . 3 1 1 1 12 Record 22 | . . . . . 1 . . . . . 11 . . . . . . . . . 4 . . . . 5 . . . . . . 1 Part Schematic 19 | . 1 . 2 . . . . . . . 12 . . . . . . . . . . . . . . 4 . . . . . . . Robot Schematic 3 | . . . . . . . . . . . 3 . . . . . . . . . . . . . . . . . . . . . . Robot Analysis 5 | . 1 . . . . . . . . . . . . . . . . . . . . . . . . 4 . . . . . . . Prototype ID Bank 23 | . 1 . 2 . . . 2 . . . 3 . . 1 . . . . . . 10 . . . . 4 . . . . . . . Open Door 5 | . . 1 . . . . . . 1 1 . . . . . . . . . . 1 . . . . . . . . . . . 1 Level Access Points 2 | . . . . . . . . . . . . . . . . . . . . . . . . . . . . . . 1 . . 1 Branch Access Points 4 | . . . . . . . . 1 . . . . 1 . . . . 1 . . . . 1 . . . . . . . . . . Terminal Index 1 | . . . . . . . . . . . . . . . . . . . . . . . . . . . . . . . . . 1 Repair Station Index 1 | . . . . . . . . . . . . . . . . . . . . . . . . . . . . . . . . . 1 Alert Level 8 | . . . 1 . . . . . . . . . . . . . . 1 . . . . . . . . . . 1 . 1 . 4 Unreport Threat 5 | . . . . . . . 1 . . . . . . . . . . 2 . . . . . . . . . . . . . 1 1 Locate Traps 7 | . 1 . 1 . . . 1 . . . . . . 1 . . . 1 . . . . 1 . . . . . 1 . . . . Transport Status 1 | . . . 1 . . . . . . . . . . . . . . . . . . . . . . . . . . . . . . Recall Investigation 1 | . . . 1 . . . . . . . . . . . . . . . . . . . . . . . . . . . . . . Recall Reinforcements 1 | . . . . . . . . . . . . . . 1 . . . . . . . . . . . . . . . . . . . Hauler Manifests 6 | . . . 1 . . . . 1 . . . . 1 . . . . 2 . . . . . . . . . . 1 . . . . Zone Layout 1 | . . . . . . . . . . . . . . . . . 1 . . . . . . . . . . . . . . . . Disengage Seal 2 | . . . . . . . . . . . . . . . . . . . . . . . . . . . . . . . . . 2 Fabricator Hacks . | . . . . . . . . . . . . . . . . . . . . . . . . . . . . . . . . . . Repair Station Hacks 10 | . 4 . 1 . . . 2 . . . . . . . . . . . . . . . 1 . . . . . . . . 2 . Scan Component 6 | . 2 . 1 . . . 1 . . . . . . . . . . . . . . . 1 . . . . . . . . 1 . Repair 4 | . 2 . . . . . 1 . . . . . . . . . . . . . . . . . . . . . . . . 1 . Recycling Unit Hacks . | . . . . . . . . . . . . . . . . . . . . . . . . . . . . . . . . . . Scanalyzer 7 | . . . 1 . . . . 3 . . . . . . . . . . . . . . . . . . . . 1 . 2 . . Insert Component 6 | . . . 1 . . . . 2 . . . . . . . . . . . . . . . . . . . . 1 . 2 . . Analyze 1 | . . . . . . . . 1 . . . . . . . . . . . . . . . . . . . . . . . . . Garrison Access Hacks 4 | . . . . . . . . . . . . . . . . . . 1 . . . . . . . . . . 1 1 . 1 . Seal Access 4 | . . . . . . . . . . . . . . . . . . 1 . . . . . . . . . . 1 1 . 1 . Unauthorized Hacks 54 | . 8 . 8 . . . 6 5 . . . . . 1 . . 3 2 . . . . 3 . . . . . 8 . 1 2 7 Terminals 47 | . 6 . 6 . . . 5 3 . . . . . 1 . . 3 2 . . . . 3 . . . . . 8 . 1 2 7 Track 14 | . 2 . 2 . . . 2 . . . . . . . . . . . . . . . 1 . . . . . 4 . . . 3 Assimilate 2 | . . . . . . . . . . . . . . . . . 1 . . . . . . . . . . . . . 1 . . Botnet 23 | . 3 . 3 . . . 2 2 . . . . . 1 . . 2 1 . . . . 1 . . . . . 3 . . 1 4 Operators 8 | . 1 . 1 . . . 1 1 . . . . . . . . . 1 . . . . 1 . . . . . 1 . . 1 . Fabricators 1 | . . . . . . . . 1 . . . . . . . . . . . . . . . . . . . . . . . . . Liberate 1 | . . . . . . . . 1 . . . . . . . . . . . . . . . . . . . . . . . . . Repair Stations . | . . . . . . . . . . . . . . . . . . . . . . . . . . . . . . . . . . Recycling Units 5 | . 2 . 2 . . . 1 . . . . . . . . . . . . . . . . . . . . . . . . . . Tunnel 5 | . 2 . 2 . . . 1 . . . . . . . . . . . . . . . . . . . . . . . . . . Scanalyzers . | . . . . . . . . . . . . . . . . . . . . . . . . . . . . . . . . . . Garrison Access 1 | . . . . . . . . 1 . . . . . . . . . . . . . . . . . . . . . . . . . Jam 1 | . . . . . . . . 1 . . . . . . . . . . . . . . . . . . . . . . . . . Data Cores Recovered 1 | . . . . . . . . . . . . . . 1 . . . . . . . . . . . . . . . . . . . Used . | . . . . . . . . . . . . . . . . . . . . . . . . . . . . . . . . . . Hacking Detections 72 | . 8 . 8 . . . 5 5 . . . . 2 8 1 . 3 6 . . . . 2 . . . . . 7 1 3 2 11 Full Trace Events 6 | . 1 . . . . . 1 . . . . . 1 1 1 . . . . . . . . . . . . . . 1 . . . Feedback Events . | . . . . . . . . . . . . . . . . . . . . . . . . . . . . . . . . . . Feedback Blocked . | . . . . . . . . . . . . . . . . . . . . . . . . . . . . . . . . . . Robot Schematics Acquired 5 | . . . . . . . . . . . 3 . . . . . . . . . . . . . . . . . . . 2 . . Robots Built . | . . . . . . . . . . . . . . . . . . . . . . . . . . . . . . . . . . Authchips . | . . . . . . . . . . . . . . . . . . . . . . . . . . . . . . . . . . Time . | . . . . . . . . . . . . . . . . . . . . . . . . . . . . . . . . . . Total Robot Build Rating . | . . . . . . . . . . . . . . . . . . . . . . . . . . . . . . . . . . Part Schematics Acquired 21 | . 1 . 1 . . . . 1 . . 12 . . . . . . . . . . . . . . 4 . . . . 2 . . Parts Built . | . . . . . . . . . . . . . . . . . . . . . . . . . . . . . . . . . . Authchips . | . . . . . . . . . . . . . . . . . . . . . . . . . . . . . . . . . . Time . | . . . . . . . . . . . . . . . . . . . . . . . . . . . . . . . . . . Total Part Build Rating . | . . . . . . . . . . . . . . . . . . . . . . . . . . . . . . . . . . Parts Repaired 4 | . 2 . . . . . 1 . . . . . . . . . . . . . . . . . . . . . . . . 1 . Time 126 | . 52 . . . . . 38 . . . . . . . . . . . . . . . . . . . . . . . . 36 . Parts Recycled . | . . . . . . . . . . . . . . . . . . . . . . . . . . . . . . . . . . Recycled Matter . | . . . . . . . . . . . . . . . . . . . . . . . . . . . . . . . . . . Retrieved Matter . | . . . . . . . . . . . . . . . . . . . . . . . . . . . . . . . . . . Retrieved Components . | . . . . . . . . . . . . . . . . . . . . . . . . . . . . . . . . . . Parts Scanalyzed 1 | . . . . . . . . 1 . . . . . . . . . . . . . . . . . . . . . . . . . Part Schematics Acquired 1 | . . . . . . . . 1 . . . . . . . . . . . . . . . . . . . . . . . . . Parts Damaged . | . . . . . . . . . . . . . . . . . . . . . . . . . . . . . . . . . . Bothacking | -11 -10 -10 -9 -9 -9 -8 -8 -7 -7 -7 -7 -6 -6 -6 -6 -6 -6 -5 -5 -5 -5 -4 -4 -4 -4 -4 -3 -3 -3 -2 -2 -1 -1 ------------ Run | Scr Mat Min Mat Min Exi Min Mat Fac Low Low Dat Pro Fac Ext Cet Arc Hub Fac Upp Upp War Pro Fac Upp Upp Zhi Pro Res Qua Res Tes Acc Com Used RIF Installer . | . . . . . . . . . . . . . . . . . . . . . . . . . . . . . . . . . . Robots Hacked 1 | . . . . . . . . . . . . . . . . . . . . . . . . . . . . . . . . . 1 Non-combat . | . . . . . . . . . . . . . . . . . . . . . . . . . . . . . . . . . . Combat . | . . . . . . . . . . . . . . . . . . . . . . . . . . . . . . . . . . Robot Hacks Applied . | . . . . . . . . . . . . . . . . . . . . . . . . . . . . . . . . . . Manual 1 | . . . . . . . . . . . . . . . . . . . . . . . . . . . . . . . . . 1 Relay Couplers Released 2 | . . . . . . . . . . . . . . . . . . . . . . . . . . . . . . 2 . . . Machine Destruction 2 | . . . . . . . . . . . . . . . . . . . . . . . . . . . . . . 2 . . . Fabnet Peak Effective % . | . . . . . . . . . . . . . . . . . . . . . . . . . . . . . . . . . . Robots Rewired 22 | . . . . . . . . . . . . . . 22 . . . . . . . . . . . . . . . . . . . Allies Hacked 2 | . . . . . . . . . . . . . . . . . . . . . . . . . . . . . . . 2 . . Hacks Repelled . | . . . . . . . . . . . . . . . . . . . . . . . . . . . . . . . . . . Allies | -11 -10 -10 -9 -9 -9 -8 -8 -7 -7 -7 -7 -6 -6 -6 -6 -6 -6 -5 -5 -5 -5 -4 -4 -4 -4 -4 -3 -3 -3 -2 -2 -1 -1 -------- Run | Scr Mat Min Mat Min Exi Min Mat Fac Low Low Dat Pro Fac Ext Cet Arc Hub Fac Upp Upp War Pro Fac Upp Upp Zhi Pro Res Qua Res Tes Acc Com Total Allies 49 | . . 1 . 2 . . . 3 . . . 1 . 31 5 . . . . . . . . . . . . . . . 3 3 . Largest Group 22 | . . 1 . 2 2 . . 3 . . . 1 1 22 22 7 5 5 . . . . . . . . . . . . 3 3 . Highest-Rated Group 975 | . . 31 . 46 46 . . 90 . . . 96 96 811 975 608 411 411 . . . . . . . . . . . . 138 374 . Highest-Rated Ally 159 | . . 31 . 31 31 . . 30 . . . 96 96 159 159 159 96 96 . . . . . . . . . . . . 46 131 . Total Orders 47 | . . . . . . . . . 4 . . 2 . 2 . 5 18 5 3 1 7 . . . . . . . . . . . . STAY 18 | . . . . . . . . . . . . . . 1 . 3 9 3 1 . 1 . . . . . . . . . . . . ROAM 1 | . . . . . . . . . . . . . . . . . . . . . 1 . . . . . . . . . . . . FOLLOW 11 | . . . . . . . . . . . . . . 1 . 2 5 2 1 . . . . . . . . . . . . . . EXPLORE 7 | . . . . . . . . . 3 . . 2 . . . . 1 . . . 1 . . . . . . . . . . . . RETURN 10 | . . . . . . . . . 1 . . . . . . . 3 . 1 1 4 . . . . . . . . . . . . Ally Attacks 383 | . . . . 1 . . . . 4 . . 15 8 131 139 31 6 22 2 . 6 . . . . . . . . . 14 4 . Total Damage 9099 | . . . . 20 . . . . . . . 274 319 2920 3162 918 348 783 . . . . . . . . . . . . 294 61 . Kills 70 | . . . . 1 . . . . . . . 3 3 23 26 3 4 5 . . . . . . . . . . . . 2 . . Allies Corrupted 1 | . . . . . . . . . . . . . . . . . . . . . . . . . . . . . . . 1 . . Allies Melted 1 | . . . . . . . . . . . . . . . . . . . . . . . . . . . . . . 1 . . . Intel | -11 -10 -10 -9 -9 -9 -8 -8 -7 -7 -7 -7 -6 -6 -6 -6 -6 -6 -5 -5 -5 -5 -4 -4 -4 -4 -4 -3 -3 -3 -2 -2 -1 -1 ------- Run | Scr Mat Min Mat Min Exi Min Mat Fac Low Low Dat Pro Fac Ext Cet Arc Hub Fac Upp Upp War Pro Fac Upp Upp Zhi Pro Res Qua Res Tes Acc Com Robot Analysis Total 5 | . 1 . . . . . . . . . . . . . . . . . . . . . . . . 4 . . . . . . . Derelict Logs Recovered 13 | . . 2 . 1 . . . . 1 1 . 3 . . . . . . 1 . . 2 . 1 1 . . . . . . . . Drone Launches 26 | . . . . . . . . . 5 . . 2 . . . . 3 . 4 . 12 . . . . . . . . . . . . Drone Recoveries 10 | . . . . . . . . . 1 . . . . . . . 3 . 1 1 4 . . . . . . . . . . . . Exploration | -11 -10 -10 -9 -9 -9 -8 -8 -7 -7 -7 -7 -6 -6 -6 -6 -6 -6 -5 -5 -5 -5 -4 -4 -4 -4 -4 -3 -3 -3 -2 -2 -1 -1 ------------- Run | Scr Mat Min Mat Min Exi Min Mat Fac Low Low Dat Pro Fac Ext Cet Arc Hub Fac Upp Upp War Pro Fac Upp Upp Zhi Pro Res Qua Res Tes Acc Com Turns Passed 40975 | 54 3241 1480 1933 1245 396 273 1584 1472 1118 1314 127 992 743 2277 406 3863 439 2647 924 451 1610 1034 879 510 978 400 347 407 2609 482 1968 1079 1693 Spaces Moved 16571 | 32 1104 559 734 550 209 135 524 896 722 769 91 635 401 711 149 383 230 1052 348 122 659 344 351 222 475 188 183 193 1063 257 861 485 934 Core 6 | 6 . . . . . . . . . . . . . . . . . . . . . . . . . . . . . . . . . Treads 8344 | 26 623 . 25 . . . 28 . . . . . . 580 149 383 230 905 . . . 183 351 222 475 188 183 193 1063 257 861 485 934 Legs 1268 | . 481 559 8 . . . . . . . . . . . . . . . . . 59 161 . . . . . . . . . . . Wheels 6953 | . . . 701 550 209 135 496 896 722 769 91 635 401 131 . . . 147 348 122 600 . . . . . . . . . . . . Hover . | . . . . . . . . . . . . . . . . . . . . . . . . . . . . . . . . . . Flight . | . . . . . . . . . . . . . . . . . . . . . . . . . . . . . . . . . . Fastest Speed 50 | 50 160 260 130 190 190 190 190 135 150 135 135 150 135 150 160 160 160 160 230 230 230 240 170 180 180 180 180 180 145 161 152 155 150 Average Speed 187 | 139 239 260 204 207 190 190 223 142 150 149 135 150 139 235 224 163 160 172 230 231 237 244 199 180 180 180 180 180 194 161 155 155 152 Slowest Speed 320 | 160 320 260 320 230 190 190 240 150 150 150 150 150 190 250 247 240 160 320 245 245 275 250 240 180 180 180 180 180 270 161 240 155 155 Overloaded Moves . | . . . . . . . . . . . . . . . . . . . . . . . . . . . . . . . . . . Propulsion Burnouts . | . . . . . . . . . . . . . . . . . . . . . . . . . . . . . . . . . . Robots Hopped . | . . . . . . . . . . . . . . . . . . . . . . . . . . . . . . . . . . Cave-ins Triggered 1 | . . . . . . . . . . . . . . . . . . . . . . . . . . . . . . . 1 . . Exploration Rate (%) 56 | 4 98 94 81 98 61 29 51 24 92 94 73 83 13 88 82 94 24 35 56 20 88 57 13 52 70 61 41 6 80 14 73 17 43 Regions Visited 33 Branch Regions 23 Pre-discovered Areas 16 | . 2 1 2 . 1 . 1 . . . 1 2 . . . . . . 1 . . 1 . . 1 3 . . . . . . . Known Exits Taken 24 | . . . . . . . . 1 1 1 1 1 1 1 1 1 1 1 1 1 1 1 1 1 1 1 1 . 1 1 1 1 . Unknown Exits Taken 9 | 1 1 1 1 1 1 1 1 . . . . . . . . . . . . . . . . . . . . 1 . . . . . Scrap Searched 27 | . . 2 . 1 . . . . 1 11 . 3 . . . . . . 2 1 . 3 . 1 2 . . . . . . . . Spaces Dug 326 | . . . 7 96 . . . 22 . 24 . . 13 12 . . 2 22 6 . 1 11 8 1 5 . . 1 10 . 16 60 9 Terrain Destroyed 943 | . 71 . 54 177 . . 5 24 . 32 . 1 14 18 . 27 142 87 9 . 1 12 41 7 22 . . 2 25 . 16 117 39 Melee 95 | . . . . . . . . 8 . 24 . . 12 . . . 2 13 2 . 1 7 4 . . . . . 3 . 8 11 . Projectile 206 | . . . . . . . 2 3 . . . 1 2 5 . 27 1 63 7 . . 5 11 7 22 . . 2 22 . 8 2 16 AOE 638 | . 71 . 54 177 . . 2 13 . 8 . . . 12 . . 139 10 . . . . 26 . . . . . . . . 104 22 Terrain Rammed . | . . . . . . . . . . . . . . . . . . . . . . . . . . . . . . . . . . Walls Destroyed . | . . . . . . . . . . . . . . . . . . . . . . . . . . . . . . . . . . Machines Disabled . | . . . . . . . . . . . . . . . . . . . . . . . . . . . . . . . . . . Actions | -11 -10 -10 -9 -9 -9 -8 -8 -7 -7 -7 -7 -6 -6 -6 -6 -6 -6 -5 -5 -5 -5 -4 -4 -4 -4 -4 -3 -3 -3 -2 -2 -1 -1 --------- Run | Scr Mat Min Mat Min Exi Min Mat Fac Low Low Dat Pro Fac Ext Cet Arc Hub Fac Upp Upp War Pro Fac Upp Upp Zhi Pro Res Qua Res Tes Acc Com Total 24357 | 39 1530 581 988 617 208 141 822 1025 752 875 94 669 509 1171 219 3577 297 1512 449 291 698 506 454 317 570 231 201 224 1407 322 1228 688 1145 Wait 5059 | . 269 2 52 22 . . 167 16 13 57 . 24 34 162 39 3147 50 117 63 167 7 113 27 83 49 . 19 2 69 38 101 83 67 Move 16537 | 31 1103 558 733 549 208 134 523 895 721 768 90 634 400 710 148 382 229 1051 347 121 658 343 350 221 474 187 182 192 1062 256 859 484 934 Hop . | . . . . . . . . . . . . . . . . . . . . . . . . . . . . . . . . . . Pick Up 226 | 2 26 4 27 5 . . 21 9 1 . . 2 3 9 6 8 . 19 2 1 4 5 3 . 5 1 . 2 21 5 19 7 9 Fast Attach 169 | 6 5 . 10 . . . 4 4 2 3 2 1 3 4 5 1 5 12 3 . 4 3 4 . 2 8 . 3 30 3 20 8 14 Attach 141 | . 3 . 8 5 . . 4 3 . . . . 4 8 1 1 . 23 4 . 3 4 2 . 1 1 . 2 26 4 10 11 13 Detach 80 | . 2 . 1 . . . . . 2 . . . 2 1 1 1 3 9 4 . 2 1 . . . 2 . 1 17 4 5 6 16 Swap 434 | . 12 3 29 10 . 2 25 31 9 13 . 2 22 20 5 6 1 66 8 1 7 10 15 6 12 . . 4 34 4 40 16 21 Drop 272 | . 11 5 28 . . . 23 15 3 3 2 3 4 5 11 9 5 11 3 1 8 6 9 . 5 8 . 2 23 6 39 9 15 Fire 909 | . 93 3 99 26 . 5 55 22 1 3 . 3 22 60 2 22 1 172 12 . . 14 30 7 22 5 . 16 105 . 30 27 52 Melee 274 | . . . . . . . . 14 . 28 . . 15 . 1 . 3 32 3 . 5 7 13 . . . . . 14 2 103 34 . Ram . | . . . . . . . . . . . . . . . . . . . . . . . . . . . . . . . . . . Kick 4 | . 2 1 1 . . . . . . . . . . . . . . . . . . . . . . . . . . . . . . Crush 32 | . 4 . . . . . . . . . . . . 1 . . . . . . . . . . . 19 . . . . 1 3 4 Escape Stasis 43 | . . . . . . . . 16 . . . . . 26 . . . . . . . . . . . . . . . . 1 . . Rewire 165 | . . . . . . . . . . . . . . 165 . . . . . . . . . . . . . . . . . . . Trap 12 | . . 5 . . . . . . . . . . . . . . . . . . . . 1 . . . . . 6 . . . . Miscellaneous . | . . . . . . . . . . . . . . . . . . . . . . . . . . . . . . . . . . Route ------- -11/Scrapyard -10/Materials (discovered 4 exits: *Mat x3 / *Min) -10/Mines -9/Materials (discovered 4 exits: *Mat x3 / [*Min]) -9/Mines (discovered 3 exits: *Mat x2 / *Exi) -9/Exiles -8/Mines -8/Materials (discovered 2 exits: *Fac x2) -7/Factory (discovered 3 exits: *Fac / *Low x2) -7/Lower Caves -7/Lower Caves (discovered 2 exits: *Fac / *Dat) -7/Data Miner -6/Proximity Caves -6/Factory (discovered 4 exits: *Low x2 / *Ext x2) -6/Extension (discovered 2 exits: *Fac / *Cet) -6/Cetus (discovered 2 exits: *Fac / *Arc) -6/Archives (discovered 3 exits: *Fac / *Hub x2) -6/Hub_04(d) -5/Factory (discovered 2 exits: *Upp x2) -5/Upper Caves -5/Upper Caves -5/Warlord -4/Proximity Caves -4/Factory (discovered 2 exits: *Upp x2) -4/Upper Caves -4/Upper Caves (discovered 2 exits: *Res / *Zhi) -4/Zhirov -3/Proximity Caves -3/Research (discovered 2 exits: Res / *Qua) -3/Quarantine -2/Research (discovered 4 exits: Acc x3 / *Tes) -2/Testing -1/Access (discovered 2 exits: Sur / *Com) -1/Command (discovered 2 exits: Sur x2) Free Derelict Territories History --------- Turn | Location | Event 32 | -11/Scrapyard | Discovered new exit (range 14) 55 | -11/Scrapyard | Entered Materials 309 | -10/Materials | Build established: Mutant 525 | -10/Materials | Repaired Propulsion Shielding? 706 | -10/Materials | Repaired EM Pulse Gun? 1329 | -10/Materials | Discovered new exit (range 15) 1876 | -10/Materials | Core integrity fell below 50% 2230 | -10/Materials | Discovered new exit (range 11) 2342 | -10/Materials | Discovered new exit (range 5) 2419 | -10/Materials | Discovered new exit (range 15) 3296 | -10/Materials | Entered Mines 3509 | -10/Mines | Learned Materials terminal intel 3659 | -10/Mines | Received a Mining Laser from a helpful Derelict 3878 | -10/Mines | Found the Drone Emporium 3888 | -10/Mines | Found Prototype Device 3940 | -10/Mines | Received a Rocket Launcher from a helpful Derelict 4045 | -10/Mines | Discovered new exit (range 12) 4295 | -10/Mines | Found a hidden stash of uninstalled traps 4611 | -10/Mines | Found a damaged Exp. Sensor Array with a note attached 4616 | -10/Mines | Found Prototype Device 4776 | -10/Mines | Entered Materials 4776 | -9/Materials | Evolved 2 slots: Propulsion x1, Utility x1 4777 | -9/Materials | Loaded intel: 12 terminal locations 4777 | -9/Materials | Identified Bomb Drone Bay 5074 | -9/Materials | Identified Exp. Sensor Array 5179 | -9/Materials | Discovered new exit (range 5) 5740 | -9/Materials | Build established: Scavenger-Mutant 5808 | -9/Materials | Discovered new exit (range 14) 6454 | -9/Materials | Discovered new exit (range 4) 6585 | -9/Materials | Build established: Mutant 6628 | -9/Materials | Discovered new exit (range 12) 6709 | -9/Materials | Entered Mines 6745 | -9/Mines | Met a Derelict bent on vengeance 6958 | -9/Mines | Discovered new exit (range 10) 7120 | -9/Mines | Learned Materials stockpile data 7437 | -9/Mines | Assembled infested the area 7497 | -9/Mines | Core integrity fell below 50% 7525 | -9/Mines | Destroyed 12 combat bots 7527 | -9/Mines | Lost 5 parts (2n2u1w) 7823 | -9/Mines | Discovered new exit (range 4) 7947 | -9/Mines | Deemed a non-threat by the Exiles lab entrance 7947 | -9/Mines | Discovered new exit (range 5) 7954 | -9/Mines | Entered Exiles 7954 | -9/Exiles | Accompanied by 2 allies 7984 | -9/Exiles | Led the pair of lost Derelicts to a safe place 8000 | -9/Exiles | Met 8R-AWN 8036 | -9/Exiles | Met EX-HEX 8093 | -9/Exiles | Met EX-BIN 8122 | -9/Exiles | Met EX-DEC 8131 | -9/Exiles | Learned location of Zion (-6) 8327 | -9/Exiles | Discovered new exit (range 14) 8350 | -9/Exiles | Entered Mines 8507 | -8/Mines | Discovered new exit (range 5) 8623 | -8/Mines | Entered Materials 8623 | -8/Materials | Evolved 2 slots: Utility x1, Weapon x1 9060 | -8/Materials | Build established: Tank 9538 | -8/Materials | Discovered new exit (range 5) 9772 | -8/Materials | Repaired Reflective Plating? 9829 | -8/Materials | Discovered new exit (range 15) 10120 | -8/Materials | Garrison activated, responded to threat 10207 | -8/Materials | Entered Factory 10207 | -7/Factory | Evolved 2 slots: Utility x2 10230 | -7/Factory | Build established: Scavenger-Skirmisher 10568 | -7/Factory | Discovered new exit (range 3) 10571 | -7/Factory | Identified exit to Factory 10637 | -7/Factory | Build established: Scavenger-Assassin 11037 | -7/Factory | Identified exit to Lower Caves 11679 | -7/Factory | Entered Lower Caves 11700 | -7/Lower Caves | Build established: Scavenger-Skirmisher 11958 | -7/Lower Caves | Identified exit to Lower Caves 12131 | -7/Lower Caves | Encountered a Warlord checkpoint 12797 | -7/Lower Caves | Entered another Lower Caves area 12798 | -7/Lower Caves | Encountered a Warlord checkpoint 12834 | -7/Lower Caves | Discovered exit to Factory (range 9) 12915 | -7/Lower Caves | Identified exit to Data Miner 13270 | -7/Lower Caves | Build established: Scavenger-Assassin 14111 | -7/Lower Caves | Entered Data Miner 14112 | -7/Data Miner | Discovered new exit (range 6) 14133 | -7/Data Miner | Met Data Miner 14165 | -7/Data Miner | Learned location of Section 7 (-3) 14165 | -7/Data Miner | Acquired the access code to Warlord's prototype stash 14184 | -7/Data Miner | Received God Mode back door access code from Data Miner 14236 | -7/Data Miner | Identified exit to Proximity Caves 14238 | -7/Data Miner | Entered Proximity Caves 14280 | -6/Proximity Caves | Escorted by Enhanced Grunt 14329 | -6/Proximity Caves | Learned 8 Factory zone layouts 14340 | -6/Proximity Caves | Learned location of Extension (-6) 15119 | -6/Proximity Caves | Discovered exit to Factory (range 8) 15230 | -6/Proximity Caves | Entered Factory 15230 | -6/Factory | Accompanied by 1 ally 15230 | -6/Factory | Evolved 2 slots: Propulsion x1, Utility x1 15231 | -6/Factory | Identified exit to Lower Caves 15262 | -6/Factory | Incoming investigation squad redirected 15320 | -6/Factory | Discovered exit to Lower Caves (range 12) 15407 | -6/Factory | Identified exit to Extension 15640 | -6/Factory | Found Prototype Device 15640 | -6/Factory | Identified Exp. Thermal Shield 15705 | -6/Factory | Spotted B-75 Beast 15934 | -6/Factory | Garrison activated, responded to threat 15973 | -6/Factory | Entered Extension 16686 | -6/Extension | Spotted B-75 Beast 16920 | -6/Extension | Rescued a captive Derelict 16920 | -6/Extension | Rescued a captive Derelict 17071 | -6/Extension | Rescued a captive Derelict 17101 | -6/Extension | Build established: Commander-Tank 17360 | -6/Extension | Allies destroyed B-75 Beast 17360 | -6/Extension | Spotted B-75 Beast 17372 | -6/Extension | Allies destroyed B-75 Beast 17571 | -6/Extension | Incoming investigation squad redirected 17595 | -6/Extension | Rescued a captive Derelict 17596 | -6/Extension | Rescued a captive Derelict 17635 | -6/Extension | Rescued A7 17741 | -6/Extension | Rescued a captive Derelict 18149 | -6/Extension | Rescued a captive Derelict 18151 | -6/Extension | Rescued a captive Derelict 18206 | -6/Extension | Discovered new exit (range 10) 18208 | -6/Extension | Discovered new exit (range 6) 18242 | -6/Extension | Identified exit to Cetus 18250 | -6/Extension | Entered Cetus 18250 | -6/Cetus | Accompanied by 22 allies (A7) 18255 | -6/Cetus | Acquired a Cetus Manufacturing Module code from A7 18281 | -6/Cetus | Spotted Cetus Guard 18281 | -6/Cetus | Spotted Cetus Guard 18282 | -6/Cetus | Spotted Cetus Guard 18296 | -6/Cetus | Allies destroyed Cetus Guard 18299 | -6/Cetus | Allies destroyed Cetus Guard 18300 | -6/Cetus | Spotted Cetus Guard 18301 | -6/Cetus | Allies destroyed Cetus Guard 18302 | -6/Cetus | Allies destroyed Cetus Guard 18435 | -6/Cetus | Started Cetus Manufacturing Module 18443 | -6/Cetus | Incoming investigation squad redirected 18456 | -6/Cetus | Escorted A7 to Cetus Mainframe 18460 | -6/Cetus | Manufactured an Enhanced Grunt 18479 | -6/Cetus | Discovered new exit (range 22) 18485 | -6/Cetus | Manufactured an Enhanced Grunt 18510 | -6/Cetus | Manufactured an Enhanced Grunt 18532 | -6/Cetus | Spotted Cetus Guard 18532 | -6/Cetus | Spotted Cetus Guard 18534 | -6/Cetus | Spotted Cetus Guard 18534 | -6/Cetus | Spotted Cetus Guard 18535 | -6/Cetus | Manufactured an Enhanced Grunt 18540 | -6/Cetus | Allies destroyed Cetus Guard 18543 | -6/Cetus | Allies destroyed Cetus Guard 18544 | -6/Cetus | Allies destroyed Cetus Guard 18551 | -6/Cetus | Allies destroyed Cetus Guard 18557 | -6/Cetus | Discovered new exit (range 22) 18560 | -6/Cetus | Manufactured an Enhanced Grunt 18591 | -6/Cetus | Met Revision 17 18641 | -6/Cetus | Identified exit to Archives 18656 | -6/Cetus | Entered Archives 18656 | -6/Archives | Accompanied by 7 allies (A7) 18661 | -6/Archives | Received a hacking code to weaken MAIN.C 18760 | -6/Archives | Discovered new exit (range 22) 18835 | -6/Archives | Discovered new exit (range 20) 18840 | -6/Archives | Discovered new exit (range 15) 19022 | -6/Archives | Build established: Scavenger-Gunner 22515 | -6/Archives | Identified exit to Hub_04(d) 22519 | -6/Archives | Entered Hub_04(d) 22519 | -6/Hub_04(d) | Accompanied by 5 allies 22567 | -6/Hub_04(d) | Build established: Scavenger-Skirmisher 22582 | -6/Hub_04(d) | Discovered new exit (range 8) 22752 | -6/Hub_04(d) | Identified exit to Factory 22925 | -6/Hub_04(d) | Network Hub disabled 22958 | -6/Hub_04(d) | Entered Factory 22958 | -5/Factory | Accompanied by 5 allies 22958 | -5/Factory | Evolved 2 slots: Utility x2 23112 | -5/Factory | Identified exit to Upper Caves 24018 | -5/Factory | Spotted B-75 Beast 24513 | -5/Factory | Build established: Scavenger-Assassin 24922 | -5/Factory | Garrison activated, responded to threat 24953 | -5/Factory | Lost 3 parts (1n1u1w) 25058 | -5/Factory | First assault squad dispatched 25093 | -5/Factory | Garrison activated, responded to threat 25184 | -5/Factory | Incoming assault squad redirected 25209 | -5/Factory | Core integrity fell below 50% 25236 | -5/Factory | Lost 9 parts (2n3u4w) 25411 | -5/Factory | Found Prototype Launcher 25411 | -5/Factory | Identified Tesla Bomb Launcher 25417 | -5/Factory | Found Tesla Bomb Launcher 25420 | -5/Factory | Found Tesla Bomb Launcher 25441 | -5/Factory | Build established: Scavenger-Mutant 25605 | -5/Factory | Entered Upper Caves 26098 | -5/Upper Caves | Build established: Scavenger-Assassin 26362 | -5/Upper Caves | Attracted the attention of an 0b10 checkpoint 26448 | -5/Upper Caves | Discovered new exit (range 19) 26527 | -5/Upper Caves | Identified exit to Upper Caves 26529 | -5/Upper Caves | Entered another Upper Caves area 26529 | -5/Upper Caves | Accompanied by 1 ally 26601 | -5/Upper Caves | Discovered new exit (range 11) 26673 | -5/Upper Caves | Build established: Scavenger-Skirmisher 26945 | -5/Upper Caves | Identified exit to Warlord 26980 | -5/Upper Caves | Entered Warlord 27058 | -5/Warlord | System corruption cleaned by Quarantine Array 27363 | -5/Warlord | Build established: Scavenger-Assassin 28041 | -5/Warlord | Visited the Vortex Lab 28045 | -5/Warlord | Warlord's base attacked by MAIN.C 28200 | -5/Warlord | Met Warlord 28228 | -5/Warlord | Opened Warlord's prototype stash 28238 | -5/Warlord | Found Prototype Reactor 28246 | -5/Warlord | Found Prototype Device 28246 | -5/Warlord | Identified Exp. Phase Shifter 28266 | -5/Warlord | Identified Vortex Chain Reactor 28395 | -5/Warlord | Warlord forces counterattacked 28434 | -5/Warlord | Spotted Striker 28481 | -5/Warlord | Spotted Striker 28486 | -5/Warlord | Spotted Executioner 28518 | -5/Warlord | Spotted Striker 28555 | -5/Warlord | Spotted Executioner 28557 | -5/Warlord | Spotted Striker 28570 | -5/Warlord | Discovered new exit (range 9) 28587 | -5/Warlord | Identified exit to Proximity Caves 28590 | -5/Warlord | Entered Proximity Caves 29227 | -4/Proximity Caves | Learned Research emergency access door positions 29441 | -4/Proximity Caves | Build established: Derelict-Assassin 29586 | -4/Proximity Caves | Discovered new exit (range 13) 29615 | -4/Proximity Caves | Identified exit to Factory 29619 | -4/Proximity Caves | System corruption reached 10% 29624 | -4/Proximity Caves | Entered Factory 29624 | -4/Factory | Evolved 2 slots: Propulsion x2 29744 | -4/Factory | Spotted B-86 Titan 29915 | -4/Factory | Identified exit to Upper Caves 30350 | -4/Factory | Build established: Scavenger-Mutant 30503 | -4/Factory | Entered Upper Caves 30651 | -4/Upper Caves | Learned location of 1 exit from Research 30985 | -4/Upper Caves | Discovered new exit (range 17) 31012 | -4/Upper Caves | Identified exit to Upper Caves 31013 | -4/Upper Caves | Entered another Upper Caves area 31186 | -4/Upper Caves | Discovered new exit (range 5) 31209 | -4/Upper Caves | Found Alien Artifact 31209 | -4/Upper Caves | Identified Core Expander 31209 | -4/Upper Caves | Installed Core Expander, added new Utility slot 31777 | -4/Upper Caves | Discovered new exit (range 19) 31888 | -4/Upper Caves | Identified exit to Zhirov 31991 | -4/Upper Caves | Entered Zhirov 31993 | -4/Zhirov | Discovered new exit (range 3) 32025 | -4/Zhirov | Met Zhirov 32065 | -4/Zhirov | Learned location of Testing (-2) 32065 | -4/Zhirov | Learned location of Command (-1) 32076 | -4/Zhirov | Zhirov requested help retrieving the SGEMP Prototype 32103 | -4/Zhirov | Found Alien Artifact 32103 | -4/Zhirov | Identified Integrated Reactor 32103 | -4/Zhirov | Installed Integrated Reactor, increased core energy generation (+10) 32192 | -4/Zhirov | Build established: Trapper-Mutant 32192 | -4/Zhirov | Found Alien Artifact 32389 | -4/Zhirov | Identified exit to Proximity Caves 32391 | -4/Zhirov | Entered Proximity Caves 32673 | -3/Proximity Caves | Build established: Trapper-Skirmisher 32684 | -3/Proximity Caves | Discovered new exit (range 8) 32695 | -3/Proximity Caves | Identified exit to Research 32738 | -3/Proximity Caves | Entered Research 32738 | -3/Research | Evolved 2 slots: Power x1, Weapon x1 32739 | -3/Research | Identified exit to Research 32770 | -3/Research | Discovered new exit (range 18) 32785 | -3/Research | Spotted B-86 Titan 32938 | -3/Research | Revision forces began assault on 0b10 32968 | -3/Research | Met up with Revision 17++ 33062 | -3/Research | Spotted B-86 Titan 33145 | -3/Research | Entered Quarantine 33200 | -3/Quarantine | Build established: Scavenger-Mutant 33432 | -3/Quarantine | Discovered exit to Research (range 13) 33483 | -3/Quarantine | Found Alien Artifact 33483 | -3/Quarantine | Identified Phase Redirector 33734 | -3/Quarantine | Lost 3 parts (1p1u1w) 34382 | -3/Quarantine | Spotted Alpha 7 34444 | -3/Quarantine | System corruption reached 10% 34515 | -3/Quarantine | Destroyed Alpha 7 34551 | -3/Quarantine | Lost 11 parts (2p3n3u3w) 34684 | -3/Quarantine | Found Alien Slashing Weapon 34684 | -3/Quarantine | Identified Sigix Broadsword 34805 | -3/Quarantine | Found Alien Artifact 34974 | -3/Quarantine | Found Alien Artifact 35406 | -3/Quarantine | Found Antimissile System 35478 | -3/Quarantine | Found Alien Impact Weapon 35478 | -3/Quarantine | Identified Core Stripper 35518 | -3/Quarantine | Identified Core Reset Matrix 35546 | -3/Quarantine | Build established: Scavenger-Assassin 35727 | -3/Quarantine | System corruption reached 30% 35754 | -3/Quarantine | Entered Research 35754 | -2/Research | Warlord forces began assault on 0b10 35754 | -2/Research | Evolved 2 slots: Power x1, Utility x1 35790 | -2/Research | Spotted B-90 Cyclops 35823 | -2/Research | Identified exit to Access 35864 | -2/Research | Research machine network offline 35935 | -2/Research | Met up with Warlord 36088 | -2/Research | Borebot progress halted 36106 | -2/Research | Discovered new exit (range 16) 36139 | -2/Research | Borebot progress halted 36141 | -2/Research | Spotted Striker 36156 | -2/Research | Spotted Striker 36158 | -2/Research | Spotted Executioner 36227 | -2/Research | Spotted Striker 36232 | -2/Research | Identified exit to Testing 36236 | -2/Research | Entered Testing 36305 | -2/Testing | Allied Derelicts emerged from ambush trap array 36330 | -2/Testing | Identified Subatomic Replicator 36330 | -2/Testing | Identified Transdimensional Reconstructor 36365 | -2/Testing | Found Prototype Energy Gun 36365 | -2/Testing | Identified Hyp. EM Gauss Rifle 36401 | -2/Testing | Found Prototype Hackware 36453 | -2/Testing | Identified System Mapper 36484 | -2/Testing | Spotted Alpha 7 36645 | -2/Testing | Found Prototype Leg 36645 | -2/Testing | Identified Myomer Exoskeleton 36712 | -2/Testing | Crushed by falling debris 36902 | -2/Testing | Destroyed 9 combat bots 37013 | -2/Testing | Found Prototype Device 37026 | -2/Testing | Identified Exp. Force Field 37071 | -2/Testing | Found Prototype Energy Cannon 37080 | -2/Testing | Identified Potential Cannon 37146 | -2/Testing | Spotted Striker 37147 | -2/Testing | Spotted Striker 37174 | -2/Testing | Destroyed Striker 37183 | -2/Testing | Destroyed Striker 37221 | -2/Testing | Destroyed Alpha 7 37234 | -2/Testing | Found Prototype Processor 37234 | -2/Testing | Identified Exp. Target Analyzer 37242 | -2/Testing | Found Prototype Ballistic Gun 37247 | -2/Testing | Identified Multirail 37258 | -2/Testing | Found Prototype Device 37258 | -2/Testing | Identified Exp. ECM Suite 37293 | -2/Testing | Found Exp. Targeting Computer 37312 | -2/Testing | Stole the SGEMP Prototype 37530 | -2/Testing | System corruption reached 10% 37672 | -2/Testing | Spotted PD-ONXS6HPLVI 37697 | -2/Testing | Destroyed PD-ONXS6HPLVI 37703 | -2/Testing | Found Prototype Launcher 37703 | -2/Testing | Identified Ragnarok Missile Launcher 38147 | -2/Testing | Discovered exit to Access (range 19) 38204 | -2/Testing | Entered Access 38204 | -1/Access | Evolved 2 slots: Utility x2 38205 | -1/Access | Loaded intel: 120 machine locations 38205 | -1/Access | Loaded intel: 59 trap records 38205 | -1/Access | Identified exit to Surface 38205 | -1/Access | Discovered exit to Surface (range 137) 38205 | -1/Access | Identified exit to Command 38205 | -1/Access | Discovered exit to Command (range 241) 38206 | -1/Access | Delivered the SGEMP Prototype to Zhirov 38206 | -1/Access | Zhirov transferred Access data 38232 | -1/Access | Zhirov warped through subspace 38424 | -1/Access | Spotted B-99 Colossus 38704 | -1/Access | First assault squad dispatched 38731 | -1/Access | Incoming assault squad redirected 38970 | -1/Access | Incoming assault squad redirected 39103 | -1/Access | Incoming assault squad redirected 39203 | -1/Access | Repaired Centrium Heavy Treads 39273 | -1/Access | System corruption reached 10% 39283 | -1/Access | Entered Command 39617 | -1/Command | Found Prototype Device 39637 | -1/Command | Identified Exp. Cloaking Device 39673 | -1/Command | Found Prototype Launcher 39686 | -1/Command | Identified Adv. Micro-nuke Launcher 39924 | -1/Command | Spotted B-99 Colossus 39931 | -1/Command | Destroyed B-99 Colossus 39942 | -1/Command | Found Multirail 39991 | -1/Command | Disengaged cave seal 39991 | -1/Command | Derelicts emerged from the dark tunnel 39992 | -1/Command | Welcomed Warlord to Command 40033 | -1/Command | First assault squad dispatched 40056 | -1/Command | Incoming assault squad redirected 40315 | -1/Command | Build established: Generator-Gunner 40333 | -1/Command | Incoming investigation squad redirected 40515 | -1/Command | Disengaged cave seal 40515 | -1/Command | Derelicts emerged from the dark tunnel 40601 | -1/Command | Incoming assault squad redirected 40644 | -1/Command | Derelicts emerged from the dark tunnel 40677 | -1/Command | Incoming assault squad redirected 40708 | -1/Command | Found Antimissile System 40729 | -1/Command | Build established: Generator-Mutant 40809 | -1/Command | Incoming assault squad redirected 40843 | -1/Command | Spotted M Guard 40843 | -1/Command | Spotted M Guard 40843 | -1/Command | Spotted Combat Programmer 40845 | -1/Command | Spotted Combat Programmer 40851 | -1/Command | Warlord commented on Warlord statues 40853 | -1/Command | Combat Programmer assimilated allied ML-7SV(d) 40876 | -1/Command | All MAIN.C guards destroyed 40880 | -1/Command | Used Subatomic Replicator to replicate Tri-rail Accelerator 40950 | -1/Command | Met MAIN.C 40950 | -1/Command | Hacked MAIN.C using A7's code 40966 | -1/Command | 0b10 Conduit disabled 40967 | -1/Command | MAIN.C activated Command garrisons 40976 | *** | Establishing Free Derelict Territories! Last Messages --------------- 40970_ Blast Slug penetrates 8L-CL8(L). 40970_ Blast Slug penetrates MAIN.C. 40970_ MAIN.C reaction time slowed by virus. 40971_ 8L-CL8(L) sneak attacks. 40971_ MAIN.C suffers critical hit (Burn). 40971_ MAIN.C reaction time slowed by virus. 40972_ 8L-CL8(L) sneak attacks. 40972_ MAIN.C reaction time slowed by virus. 40973_ 8L-CL8(L) sneak attacks. 40973_ MAIN.C knocked back. 40973_ II-84L(L) knocked back. 40973_ MAIN.C reaction time slowed by virus. 40974_ MAIN.C: "I hope you know you're still going to DIE HERE WITH ME!" [Achievement: void main()] Heavy Barrier opened. 40974_ MAIN.C destroyed. ZY-L1N: Victory! Sure there's still lots to do, but without MAIN.C at the helm 0b10 doesn't stand a chance. We've got this... Map ----- +----------------------------------------------------+ | ?????????????????????????????????????????????????? | | ?????????????????????????????????????????????????? | | ?????????????????????????????????????????????????? | | ?????????????????????????????????????????????????? | | ?????????????????????????????????????????????????? | | ?????????????????????????????????????????????????? | | ?????????????????????????????????????????????????? | | ?????????????????????????????????????????????????? | | ?????????????????????????????????????????????????? | | ?????????????????????????????????????????????????? | | ?????????????????????????????????????????????????? | | ?????????????????????????????????????????????????? | | ?????????????????????????????????????????????????? | | ?????????????????????????????????????????????????? | | ?????????????????###################?????????????? | | ?????????????????"""" """" #?????????????? | | ????????????????? "" #?????????????? | | ?????????????????"" "" s############### | | ??????????????"??"""""""" /= | | ??????????????" " "" s / = | | ?????????????#"" """""" s g s/* | | ?????????????#"" """"" W s ############### | | ?????????????# " """""%$L #?????????????? | | ?????????????# " % #?????????????? | | ?????????????# " % L % ""#?????????????? | | ?????????????#"""""" %@ """""""#?????????????? | | ?????????????#"" """""""""#?????????????? | | ?????????????# """"""""""#?????????????? | | ?????????????# " " " " #?????????????? | | ?????????????# " " " " #?????????????? | | ??????????? " " " """" " #?????????????? | | ???????? """ " " """" #?????????????? | | ??????? " " " " #?????????????? | | ??????? ##### """""""""" " #?????????????? | | ?????????????# " """ " """"""""#?????????????? | | ?????????????# """ ?" " " ???????????????? | | ?????????????####???###?#######??????????????????? | | ?????????????????????????????????????????????????? | | ?????????????????????????????????????????????????? | | ?????????????????????????????????????????????????? | | ?????????????????????????????????????????????????? | | ?????????????????????????????????????????????????? | | ?????????????????????????????????????????????????? | | ?????????????????????????????????????????????????? | | ?????????????????????????????????????????????????? | | ?????????????????????????????????????????????????? | | ?????????????????????????????????????????????????? | | ?????????????????????????????????????????????????? | | ?????????????????????????????????????????????????? | | ?????????????????????????????????????????????????? | +----------------------------------------------------+ Best States ------------- Heat Dissipation 114 Energy Generation 89 Energy Capacity 950 Matter Stores 300 Matter Capacity 300 Sight Range 22 Robot Scan Range 20 Terrain Scan Range 18 Terrain Scan Density 110 ECM Strength 3 Jamming Range 14 Additional Mass Support 12 Corruption Block 20 Armor Coverage 600 Resistance: KI 30 Resistance: TH 10 Resistance: EM 25 Propulsion Shielding 33 Weapon Shielding 66 Point Defense Rating 240 Weapon Cycling 20 Evasion (%) 40 Targeting Accuracy 12 Target Analysis 14 Armor Integrity Analysis 40 Recoil Reduction 6 Kinecelleration 40 Offensive Hacking 34 Authchip Count 1 Trap Extractor Capacity 8 Item Schematics ----------------- Huge Storage Unit | -10/Materials | Hacked Datajack | -9/Materials | Hacked Lrn. Tractor Beam | -7/Factory | Scanalyzed Combat Drone Bay | -7/Data Miner | Free Lgt. Regenerative Plating | -7/Data Miner | Free Cld. Cesium-ion Thruster | -7/Data Miner | Free Exp. Targeting Computer | -7/Data Miner | Free Cld. Plasma Cannon | -7/Data Miner | Free Gyrokinetic Inverter | -7/Data Miner | Free Imp. Focal Shield | -7/Data Miner | Free Hvy. Shock Bomb Launcher | -7/Data Miner | Free Power Amplifier | -7/Data Miner | Free Imp. Weapon Cycler | -7/Data Miner | Free Dispersion Rifle | -7/Data Miner | Free Adv. Hardlight Generator | -7/Data Miner | Free Assault Drone Bay | -4/Zhirov | Free Exp. Heat Sink | -4/Zhirov | Free Exp. Optical Array | -4/Zhirov | Free Imp. Arc Thrower | -4/Zhirov | Free Hvy. Proton Cannon | -2/Testing | Archive Gravity Flail | -2/Testing | Archive Robot Schematics ------------------ B-48 Gladiator | -7/Data Miner | Free L-41 Fighter | -7/Data Miner | Free S-27 Virus | -7/Data Miner | Free A-15 Conveyor | -2/Testing | Archive A-02 Transporter | -2/Testing | Archive Fabricated ------------ Nothing Alien Tech Used ----------------- Core Expander Integrated Reactor Phase Redirector Sigix Broadsword Core Stripper Subatomic Replicator Achievements -------------- Special Delivery void main() Challenges ------------ None Game ------ Seed BoreMetafieldNanoactuators Manual? 0 Play Time 07:45:19 Cumulative 263.0 hours Start 2022.03.31 @ 23:14:14 End 2022.04.04 @ 07:13:41 Sessions 16 Manual Loads 0 Difficulty Rogue Special Mode None Game No. 116 Rogue 116 Adventurer 0 Explorer 0 Win Type 7 Total 6 Types 4/0/0/1/0/0/0/1/0 Lore% 86 Gallery% 88 Achievement% 67 Wizard Run 0 Options --------- ASCII 0 Keyboard 1 Movement Vi Keybinds 0 Fullscreen 2 Font 18/Cog Map View 76x50 Tactical HUD 1 Map Filters NONE Filters NONE Steam 0 RUN: 401d8744-7ef4-4bc4-b035-3a5705ed8b37